Workbook

Sheet 표지
A3: 투 자 보 고 서
D6: 2021.06.01 | F6: 부터 | G6: 2021.11.30 | I6: 까지
E8: ( 제 | F8: 4 | G8: 기 )
B11: 국토교통부장관, 금융위원회 귀중
B14: 부동산투자회사법 제37조, 동법 시행령 제40조 및 부동산투자회사등에 관한 감독규정 제7조의 규정에 의하여 투자보고서를 작성하여 제출합니다.
J17: 2022.02.28
D28: 회 사 명 : | E28: 이에스알켄달스퀘어위탁관리부동산투자회사(주)
D29: 대 표 이 사 : | E29: 박래익
D30: 본점소재지 : | E30: 서울시 영등포구 국제금융로 10 Three IFC 35층
E31: (전화번호) | G31: 02)6205-0474
E32: (홈페이지) | G32: http://www.esrks-reit.com
D33: 작성책임자 : | E33: (회사) | G33: 켄달스퀘어리츠운용(주) | J33: (직책) | K33: 팀장
E34: (전화번호) | G34: 02-6205-0474 | J34: 성명 | K34: 김진숙
D35: 공시책임자 : | E35: (회사) | G35: 켄달스퀘어리츠운용(주) | J35: (직책) | K35: 팀장
E36: (전화번호) | G36: 02-6205-0474 | J36: 성명 | K36: 김진숙
A39: *입력도움말 1. 제출날짜(YYYY.MM.DD) 및 회사명, 대표이사, 본점소재지 등 내용을 직접 입력하시기 바랍니다. 2. 대표이사, 작성책임자, 공시책임자의 도장 스캔본을 '(인)' 위에 각각 삽입 후 마우스 오른쪽버튼을 클릭하여 '맨 뒤로 보내기'를 클릭하시기 바랍니다. 3. 표지 작성 후 '8부(재무제표) -> 그외 시트' 순으로 작성 바랍니다.

Sheet 1부.Ⅰ.1
A2: 제 1 부 부동산투자회사의 현황
A5: Ⅰ. 회사의 현황
B7: 1. 회사의 개요
AL8: 상장여부
E9: 1) 회사명 | P9: =표지!E28 -> 이에스알켄달스퀘어위탁관리부동산투자회사(주) | AA9: =IF(AL9="상장","(","") -> ( | AB9: =IF(AL9="상장","상장일자:","") -> 상장일자: | AF9: 2020.12.23 | AK9: =IF(AL9="상장",")","") -> ) | AL9: 상장
E10: 2) 설립일 | P10: 2020.02.20
E11: 3) 소재지 | P11: =표지!E30 -> 서울시 영등포구 국제금융로 10 Three IFC 35층
E12: 4) 자산 및 자본금, 부채 | P12: (기준일자) | U12: =표지!G6 -> 2021.11.30 | AA12: (단위: 원)
E13: 총 자 산 | P13: ='5부.Ⅰ'!U79 -> 725,325,311,393
E14: 자 본 금 | P14: ='5부.Ⅰ'!U112 -> 143,259,000,000
E15: 부 채 | P15: ='5부.Ⅰ'!U110 -> 20,922,371,809
E16: 5) 자산관리회사 | P16: 이에스알켄달스퀘어위탁관리부동산투자회사(주)
E17: 6) 사무수탁회사 | P17: 신한아이타스
E18: 7) 자산보관회사 | P18: 주식회사 신한은행
E19: 8) 비고 | P19: (1) 정관에서 정한 회사의 존속기간 및 해산사유
P20: 1. 존립기간을 정한 경우 그 존립기간의 만료 2. 주주총회의 해산결의 3. 합병 4. 파산 5. 법원의 해산명령 또는 해산판결 6. 국토교통부장관의 영업인가 또는 등록의 취소 7. 부투법 제3조부터 제7조까지의 규정을 위한하여 영업인가 또는 등록이 거부된 경우 8. 설립 후 1년 6개월 이내에 영업인가를 받지 못하거나 등록을 하지 못한 경우
P21: (2) 신용평가결과
AL24: ← 필요시 주석 기재
A27: * 입력도움말 1. 양식 수정은 절대 금지하며, 셀 높이 조절만 가능합니다. 2. 바탕색이 황갈색인 셀에만 데이터를 입력하시기 바랍니다. 3. 날짜는 0000.00.00 형식으로 입력하시기 바랍니다. 4. 상장여부를 반드시 체크하시기 바랍니다. 5. '신용평가결과'는 추후 시행예정으로 시행 전까지 '해당사항 없음'으로 기재 바랍니다.

Sheet 1부.Ⅰ.2.1)
B2: 2. 회사의 연혁
C4: 1) 설립경과 및 설립이후의 변동사항(상호의 변경, 영업양수 또는 영업양도, 주요 자산취득일 등을 기재)
E6: - 2020.02.20: 발기설립 - 2020.06.12: 자산관리위탁계약서 체결(켄달스퀘어리츠운용) - 2020.06.12: 일반사무수탁계약서 체결(신한아이타스) - 2020.06.12: 자산보관계약서 체결(신한은행) - 2020.08.24: 국토교통부 영업인가 - 2020.08.31: 1차 자산관리위탁 변경계약 체결(켄달스퀘어리츠운용) - 2020.09.24: 이에스알켄달스퀘어에셋1호위탁관리부동산투자회사 발행주식 매수 - 2020.10.19: 국토교통부 변경인가 승인 - 2020.10.23: 2차 자산관리위탁 변경계약 체결(켄달스퀘어리츠운용) - 2020.10.27: 2차 유상증자(사모) 보통주47,300,000주(자본금 총액 482억원) - 2020.10.27: 제1회 기명식 전환사채 발행(1,180억원)(사채권자:CPPIB) - 2020.11.06: 증권신고서 제출 - 2020.11.23: 증권신고서 효력 발생 - 2020.12.10: 3차 유상증자(보통주 71,459,000주 / 자본금 총액 3,573억원) - 2020.12.11: 켄달스퀘어전문투자형사모부동산신탁6호의 B종 수익증권 매수(25,564,025,475좌) 켄달스퀘어전문투자형사모부동산신탁8호의 F종 수익증권 매수(25,643,009,474좌) 켄달스퀘어전문투자형사모부동산신탁611의 수익증권 매수(34,304,284,981좌) 켄달스퀘어전문투자형사모부동산신탁7호의 B종 수익증권 매수(31,526,694,806좌) - 2020.12.11: 켄달스퀘어전문투자형사모부동산신탁8호의 F종 수익증권 추가설정(12,100,000,000좌) 켄달스퀘어전문투자형사모부동산신탁11호의 수익증권 추가설정(7,800,000,000좌) 켄달스퀘어전문투자형사모부동산신탁7호의 B종 수익증권 추가설정(9,600,000,000좌) 켄달스퀘어전문투자형사모부동산신탁6호의 B종 수익증권 추가설정(11,700,000,000좌) - 2020.12.11: 전환사채(1,180억원) 23,600,000주 주식 전환(4차 유상증자) - 2020.12.11: 이에스알켄달스퀘어에셋1호위탁관리부동산투자회사주식회사 발행주식 매수(보통주 10,670,980주) - 2020.12.21: 유가증권시장 주권 신규상장 승인 - 2020.12.23: 한국거래소 유가증권시장 상장 - 2021.06.10: 켄달스퀘어전문투자형사모부동산신탁18호의 제1종 수익증권 매수(21,700,000,000좌) 및 2종 수익증권(3,000,000,000좌) 매수 - 2021.06.11: 켄달스퀘어전문투자형사모부동산신탁18호의 제1종 수익증권 매수(1,698,138,840좌) - 2021.07.16: 이에스알켄달스퀘어에셋2호위탁관리부동산투자회사주식회사 설립자본금(보통주300,000주) 납입 - 2021.11.25: 이에스알켄달스퀘어에셋2호위탁관리부동산투자회사주식회사 유상증자 참여(보통주 440,000주)
A12: * 입력도움말 1. 양식 수정은 절대 금지하며, 셀 높이 조절만 가능합니다. 2. 바탕색이 황갈색인 셀에만 데이터를 입력하시기 바랍니다.

Sheet 1부.Ⅰ.2.2)
C2: 2) 발기인·이사 및 감사에 관한 사항
D4: (1) 발기인에 관한 사항
E6: 성 명 | M6: 생년월일 또는 법인등록번호 | T6: 주요경력 및 연혁 | AF6: 비 고
E7: 이에스알켄달스퀘어 주식회사 | M7: 110111-5588350 | T7: 2020.09. 사명 변경 (켄달스퀘어로지스틱프로퍼티스 주식회사->이에스알켄달스퀘어 주식회사) | AF7: 해당사항없음
E13: ※ 비고란에는 법 제7조의 결격요건 해당여부를 기재
E14: ※ 주요경력은 주요근무지, 근무기간 및 직위등을 구체적으로 기재
AL15: ← 필요시 주석 기재
D17: (2) 이사 및 감사에 관한 사항
E19: 직 명 | K19: 성 명 | Q19: 생년월일 | V19: 주요경력 및 연혁 | AF19: 비 고
E20: 대표이사 | K20: 박래익 | Q20: 1964.10.08 | V20: 2018.7.16~ 현재 그레이프 주식회사 | AF20: 해당사항없음
E21: 기타비상무이사 | K21: 신유철 | Q21: 1965.03.01 | V21: 2018.8. ~ 현재 변호사 신유철 법률사무소 | AF21: 해당사항없음
E22: 기타비상무이사 | K22: 조주현 | Q22: 1953.05.30 | V22: 1988.9~2018.8 건국대학교 교수 | AF22: 해당사항없음
E23: 기타비상무이사 | K23: 조준우 | Q23: 1978.01.07 | V23: 2010. 4. ~ 현재 법무법인 광장 변호사 | AF23: 해당사항없음
E24: 기타비상무이사 | K24: 하재창 | Q24: 1970.04.23 | V24: 현재 한국교직원공제회 대체투자부 대체투자2팀 팀장 | AF24: 해당사항없음
E25: 감사 | K25: 김태헌 | Q25: 1983.12.21 | V25: 2018.08.27 ~ 현재 대교회계법인 공인회계사 | AF25: 해당사항없음
E27: ※ 비고란에는 법 제14조의 결격요건 해당여부를 기재
E28: ※ 주요경력은 주요근무지, 근무기간 및 직위등을 구체적으로 기재
AL29: ← 필요시 주석 기재
A32: * 입력도움말 1. 양식 수정은 절대 금지하며, 셀 높이 조절만 가능합니다. 2. 바탕색이 황갈색인 셀에만 데이터를 입력하시기 바랍니다. 3. 필요시 행추가(복사한 셀 삽입)하여 추가 작성하시기 바랍니다. 4. 생년월일은 0000.00.00 형식으로 입력하시기 바랍니다.

Sheet 1부.Ⅰ.3.1)
B2: 3. 주식 및 자본에 관한 사항
C4: 1) 주식에 관한 사항
D6: (1) 발행한 주식의 내용
AD7: [ | AE7: =표지!G6 -> 2021.11.30 | AJ7: 현재]
AF8: (단위 : 원, 주)
C9: 구 분 | I9: 종 류 | O9: 발행주식수 | V9: 주당 발행가액 | AA9: 주당 액면가액 | AF9: 비 고
C10: 기명 | I10: 보통주 | O10: 143,259,000 | V10: 5,000 | AA10: 1,000
AL15: ← 필요시 주석 기재
D17: (2) 자기주식 취득현황
AF18: (단위 : 원, 주)
C19: 취득일자 | I19: 종 류 | O19: 주식수량 | V19: 취득가액 | AE19: 비 고
AL23: ← 필요시 주석 기재
D25: (3) 현물출자 현황
D29: (4) 비고(주식매수선택권 여부, 의결권이 있는 주식수, 의결권이 제한된 주식수 등을 기재)
A35: * 입력도움말 1. 필요시 행추가(복사한 셀 삽입)하여 추가 작성하시기 바랍니다. 2. 날짜는 0000.00.00 형식으로 입력하시기 바랍니다. 3. 해당사항 없는 항목은 기재하지 마시기 바랍니다.

Sheet 1부.Ⅰ.3.2)
C2: 2) 자본금 변동상황
AE3: (단위 : 원, 주)
C4: 일자 | G4: 원인 | I4: 증가(감소)한 주식의 내용 | W4: 증(감)자한 자본금 | AC4: 증(감)자 후 자본금 | AI4: 증(감)자 비율
I5: 종류 | L5: 수량 | Q5: 주당 발행가액 | T5: 주당 액면가액
C6: 2020. 02.20 | G6: 설립자본 | I6: 보통주 | L6: 900,000 | Q6: 5,000 | T6: 1,000 | W6: 900,000,000 | AC6: 900,000,000 | AI6: 0.0%
C7: 2020. 10.27 | G7: 증자 | I7: 보통주 | L7: 47,300,000 | Q7: 5,000 | T7: 1,000 | W7: 47,300,000,000 | AC7: 48,200,000,000 | AI7: 5255.6%
C8: 2020. 12.11 | G8: 증자 | I8: 보통주 | L8: 71,459,000 | Q8: 5,000 | T8: 1,000 | W8: 71,459,000,000 | AC8: 119,659,000,000 | AI8: 148.3%
C9: 2020. 12.11 | G9: 증자 | I9: 보통주 | L9: 23,600,000 | Q9: 5,000 | T9: 1,000 | W9: 23,600,000,000 | AC9: 143,259,000,000 | AI9: 19.7%
AM11: ← 필요시 주석 기재
C13: 3) 자본금 변동예정 등
A21: * 입력도움말 1. 2) 자본금 변동상황은 설립시부터 적어주시기 바라며, 필요시 행추가(복사한 셀 삽입)하여 작성해주시기 바랍니다. 2. 감자로 자본금이 감소할 경우는 수량을 음수(-)로 작성해주시기 바랍니다. (예) : △50,000,000 (X) / -50,000,000(O) 3. 증자비율: 증가금액(수량X주당액면가액)/증(감)자 전 자본금 감자비율: 감소금액(수량X주당액면가액)/증(감)자 전 자본금 4. 해당사항 없는 항목은 기재하지 마시기 바랍니다.

Sheet 1부.Ⅰ.4.1)
B2: 4. 주주현황
C4: 1) 최대주주 및 그 특별관계자의 주식소유현황
AL5: 【 | AM5: =표지!G6 -> 2021.11.30 | AR5: 현재 | AU5: 】
C6: 성명 | H6: 관계 | K6: 내/ 외국인 | N6: 국적 | Q6: 기관/개인 | S6: 청약예외주주 | V6: 주식의 종류 | Y6: 소유주식수(지분율) | AQ6: 변동원인
Y7: 기초 | AD7: 증가 | AH7: 감소 | AL7: 기말
C8: CPPInvest mentBoard RealEstate Holdingsinc | H8: 최대주주 | K8: 외국인 | N8: 캐나다 | Q8: 기관 | S8: 해당사항없음 | V8: 보통주 | Y8: 35,600,000 | AL8: =Y8+AD8-AH8 -> 35,600,000
Y9: (24.85%) | AL9: (24.85%)
C10: ESR Kendall Square REIT Holding | H10: 특별관계자 | K10: 외국인 | N10: 싱가포르 | Q10: 기관 | S10: 해당사항없음 | V10: 보통주 | Y10: 9,200,000 | AL10: =Y10+AD10-AH10 -> 9,200,000
Y11: (6.42%) | AL11: (6.42%)
C12: 켄달스퀘어리츠운용㈜ | H12: 특별관계자 | K12: 내국인 | N12: 대한민국 | Q12: 기관 | S12: 해당사항없음 | V12: 보통주 | Y12: 1,000,000 | AL12: =Y12+AD12-AH12 -> 1,000,000
Y13: (0.70%) | AL13: (0.70%)
E15: ※ 특별관계자는 자본시장법 시행령 제141조제1항의 특수관계인 및 공동보유자를 말함
E16: ※ 청약예외주주란에는 시행령 제12조의3(일반청약에 대한 예외) 각 호 중 해당되는 호를 기재
AV17: ← 필요시 주석 기재
A20: * 입력도움말 1. 필요시 행추가(복사한 셀 삽입)하여 추가 작성하시기 바랍니다. 2. 지분율은 숫자만 입력하시기 바랍니다.(괄호 자동표시) 3. 공모 회사 중 필요한 경우 기준일자를 직접 입력하고, 그 일자 기준의 주주현황을 입력하시기 바랍니다.

Sheet 1부.Ⅰ.4.2)
C2: 2) 주요주주(10%이상 주주)의 주식소유현황
AO3: 【 | AP3: =표지!G6 -> 2021.11.30 | AU3: 현재 | AX3: 】
C4: 순위 | G4: 성명 | L4: 내/ 외국인 | P4: 국적 | T4: 기관/ 개인 | X4: 청약예외주주 | AB4: 주식의 종류 | AF4: 소유주식수 | AN4: 지분율 | AT4: 비고
C5: 1
C6: 2
C7: 3
AY9: ← 필요시 주석 기재
A14: * 입력도움말 1. 필요시 행추가(복사한 셀 삽입)하여 추가 작성하시기 바랍니다. 2. 공모 회사 중 필요한 경우 기준일자를 직접 입력하고, 그 일자 기준의 주주현황을 입력하시기 바랍니다.

Sheet 1부.Ⅰ.4.3)
C2: 3) 소액주주, 최대주주 및 기타주주 분포
AB3: 【 | AC3: =표지!G6 -> 2021.11.30 | AH3: 현재 | AK3: 】
C4: 구분 | J4: 주주수(명) | N4: 비율 | T4: 주식수 | AA4: 비율 | AG4: 비고
C5: 최대주주 | J5: 3 | N5: =IFERROR(J5/SUM($J$5:$M$8),"") -> 0.01% | T5: 45,800,000 | AA5: =IFERROR(T5/SUM($T$5:$Z$8),"") -> 31.97% | AG5: 특수관계자포함
C6: 주요주주 | J6: - | N6: - | T6: - | AA6: - | AG6: -
C7: 소액주주 - 개인 | J7: 23,680 | N7: =IFERROR(J7/SUM($J$5:$M$8),"") -> 99.92% | T7: 46,692,801 | AA7: =IFERROR(T7/SUM($T$5:$Z$8),"") -> 32.59% | AG7: 발행주식 총수의 1%이하 보유 주수 포함
C8: 소액주주 - 법인 | J8: 15 | N8: =IFERROR(J8/SUM($J$5:$M$8),"") -> 0.06% | T8: 50,766,199 | AA8: =IFERROR(T8/SUM($T$5:$Z$8),"") -> 35.44% | AG8: 발행주식 총수의 1%이상 보유 주수 포함
C9: 합 계 | J9: =SUM(J5:M8) -> 23,698 | N9: =SUM(N5:S8) -> 100.00% | T9: =SUM(T5:Z8) -> 143,259,000 | AA9: =SUM(AA5:AF8) -> 100.00%
E11: *발행주식 총수와 최대주주 보유주식수 차이중 1%이상은 소액주주-법인으로 분류하고, 1%이하는 소액주주-개인으로 분류하였음. 실제 주식 소유현황과 차이날 수 있음. | AL11: ← 필요시 주석 기재
C14: 4) 주가변동사항
C16: 월별 | L16: 21 | N16: 년 | O16: 11 | Q16: 월 | S16: 21 | U16: 년 | V16: 10 | X16: 월 | Z16: 21 | AB16: 년 | AC16: 9 | AE16: 월 | AG16: 비고
C17: 최고가(일자) | L17: 6,770원(01일) | S17: 6,810원(29일) | Z17: 6,820원(01일)
C18: 최저가(일자) | L18: 6,470원 (10,15,18일) | S18: 6,310원(06일) | Z18: 6,380원(30일)
C19: 월간 거래량 | L19: 5,780,726 | S19: 4,494,911 | Z19: 5,155,269
C20: 일평균 거래량 | L20: 262,760 | S20: 236,574 | Z20: 271,330
E21: ※ 주가는 월별 종가기준으로 기재
AL22: ← 필요시 주석 기재
A25: * 입력도움말 1. 공모 회사 중 필요한 경우 기준일자를 직접 입력하고, 그 일자 기준의 주주현황을 입력하시기 바랍니다. 2. 해당사항 없는 항목은 기재하지 마시기 바랍니다.

Sheet 1부.Ⅰ.5
B2: 5. 배당에 관한 사항
C4: 1) 이익 등의 분배방침
C6: 가. 배당가능이익 부동산투자회사법 제28조 배당 규정에 의거하여 배당할 계획이며, 그 구체적 계획에 대하여는 정관에서 정함. 나. 배당정책 - 배당가능이익의 90% 이상을 현금배당 다. 배당금 지급 시기 및 결정방법 - 회계연도는 매년 6월 1일 개시하여 11월 30일에 종료하고, 12월 1일에 개시하여 5월 31일에 종료할 계획임. - 최초 회계연도는 당해 회사의 설립일에 개시하여 2020년 5월 31일에 종료할 계획임. - 배당금은 정기주주총회 또는 제51조 제5항에 따른 이사회의 결의로 승인을 받아 매 사업연도 종료일 현재 주주명부에 기재된 주주 또는 등록된 질권자에게 지급하며, 배당금은 배당금 승인을 한 정기주주총회 또는 이사회에서 달리 결정되지 않는 한 정기주주총회 또는 이사회의 승인일로부터 1개월 내에 지급할 계획임.
C8: 2) 최근 사업연도의 배당에 관한 사항
D9: [주당액면가액 : | K9: 1,000 | N9: 원 | O9: ] | AA9: (단위 : 원, %)
C10: 구분 | K10: 제 | L10: 4 | M10: 기 | Q10: 제 | R10: 3 | S10: 기 | W10: 제 | X10: 2 | Y10: 기 | AC10: 제 | AD10: 1 | AE10: 기
C11: 당기순이익 | I11: ='5부.Ⅱ'!U73 -> 18,889,201,443 | O11: -496,229,966 | U11: -1,321,492,232 | AA11: -125,133,733
C12: 상법상 배당가능이익 | I12: 20,040,809,374 | O12: 19,715,144,069 | U12: 0 | AA12: 0
C13: 당기감가상각비 등 | I13: =I32+I33 -> 0 | O13: =O32+O33 -> 0 | U13: =U32+U33 -> 0 | AA13: =AA32+AA33 -> 0
C14: 이익배당한도 | I14: =I12+I13 -> 20,040,809,374 | O14: =O12+O13 -> 19,715,144,069 | U14: =U12+U13 -> 0 | AA14: =AA12+AA13 -> 0
C15: 배당금 | I15: ='5부.Ⅲ'!O20 -> 19,196,706,000 | O15: 19,263,536,138 | U15: 0 | AA15: 0
C16: 주당배당금 | I16: 134 | O16: 134 | U16: 0 | AA16: 0
C17: 배당수익율 | I17: =IF(ISERROR(I15/((I34+I35)/2)*100),"-",I15/((I34+I35)/2)) -> 2.80% | O17: =IF(ISERROR(O15/((O34+O35)/2)*100),"-",O15/((O34+O35)/2)) -> 4.16% | U17: =IF(ISERROR(U15/((U34+U35)/2)*100),"-",U15/((U34+U35)/2)) -> 0.00% | AA17: =IF(ISERROR(AA15/((AA34+AA35)/2)*100),"-",AA15/((AA34+AA35)/2)) -> 0.00%
C18: 연환산배당율 | I18: =IF(ISERROR(I17*365/I31),"-",I17*365/I31) -> 5.59% | O18: =IF(ISERROR(O17*365/O31),"-",O17*365/O31) -> 8.35% | U18: =IF(ISERROR(U17*365/U31),"-",U17*365/U31) -> 0.00% | AA18: =IF(ISERROR(AA17*365/AA31),"-",AA17*365/AA31) -> 0.00%
E19: ※ 상법상 배당가능이익 : 순자산가액 - 자본금 - 자본준비금 - 상법 시행령 제19조의 미실현이익 - 기타(주식할인발행차금 상각액 등)
E20: ※ 당기 감가상각비 등 : 당기 감가상각비 + 전기이전 감가상각비 초과배당누적액
E21: ※ 이익배당한도 : 상법상 배당가능이익 + 당기 감가상각비 등
E22: ※ 주당배당금 : 배당금 / 발행주식수
E23: ※ 배당수익율 : 배당액 / [ (기초납입자본금+기말납입자본금)/2 ] 로 계산
E24: ※ 1기의 사업연도가 1년 미만일 경우, 비교목적으로 연환산배당율을 다음의 산식으로 추가기재 연환산배당율 : 배당수익율 x 365일 / (해당사업연도의 일수)
AG25: ← 필요시 주석 기재
D27: * 산출근거자료 | AA27: (단위 : 원)
C28: 구분 | K28: 제 | L28: =L10 -> 4 | M28: 기 | Q28: 제 | R28: =R10 -> 3 | S28: 기 | W28: 제 | X28: =X10 -> 2 | Y28: 기 | AC28: 제 | AD28: =AD10 -> 1 | AE28: 기
C29: 기수시작일 | I29: 2021-06-01 | O29: 2020-12-01 | U29: 2020-06-01 | AA29: 2020-02-20
C30: 기수종료일 | I30: 2021-11-30 | O30: 2021-05-31 | U30: 2020-11-30 | AA30: 2020-05-31
C31: 사업일수 | I31: =IFERROR(IF(I29>0, I30-I29+1, " "),"") -> 183 | O31: =IFERROR(IF(O29>0, O30-O29+1, " "),"") -> 182 | U31: =IFERROR(IF(U29>0, U30-U29+1, " "),"") -> 183 | AA31: =IFERROR(IF(AA29>0, AA30-AA29+1, " "),"") -> 102
C32: 당기 감가상각비 | I32: 0 | O32: 0 | U32: 0 | AA32: 0
C33: 전기이전 감가상각비 초과배당누적액 | I33: 0 | O33: 0 | U33: 0 | AA33: 0
C34: 기초납입자본금 | I34: ='5부.Ⅰ'!AG112+'5부.Ⅰ'!AG115 -> 685,109,342,670 | O34: 240,741,961,760 | U34: 4,492,289,000 | AA34: 0
C35: 기말납입자본금 | I35: ='5부.Ⅰ'!U112+'5부.Ⅰ'!U115 -> 684,362,130,210 | O35: 685,109,342,670 | U35: 240,741,961,760 | AA35: 4,492,289,000
D37: ※ 납입자본금은 액면가액이 아닌 발행가액을 기준하여 적용
D39: - 우선주 및 보통주의 배당에 관한 사항 | AA39: (단위 : 원, %)
C40: 구분 | K40: 제 | L40: =L10 -> 4 | M40: 기 | Q40: 제 | R40: =R10 -> 3 | S40: 기 | W40: 제 | X40: =X10 -> 2 | Y40: 기 | AC40: 제 | AD40: =AD10 -> 1 | AE40: 기
C41: (우선주) 배당금총액 | I41: ='5부.Ⅲ'!O22+'5부.Ⅲ'!O24 -> 0 | O41: 0 | U41: 0 | AA41: 0
C42: (우선주) 배당수익율 | I42: =IF(ISERROR(I41/((I47+I48)/2)*100),"-",I41/((I47+I48)/2)) -> - | O42: =IF(ISERROR(O41/((O47+O48)/2)*100),"-",O41/((O47+O48)/2)) -> - | U42: =IF(ISERROR(U41/((U47+U48)/2)*100),"-",U41/((U47+U48)/2)) -> - | AA42: =IF(ISERROR(AA41/((AA47+AA48)/2)*100),"-",AA41/((AA47+AA48)/2)) -> -
C43: (우선주) 연환산배당율 | I43: =IF(ISERROR(I42*365/I31),"-",I42*365/I31) -> - | O43: =IF(ISERROR(O42*365/O31),"-",O42*365/O31) -> - | U43: =IF(ISERROR(U42*365/U31),"-",U42*365/U31) -> - | AA43: =IF(ISERROR(AA42*365/AA31),"-",AA42*365/AA31) -> -
C44: (보통주) 배당금총액 | I44: ='5부.Ⅲ'!O21+'5부.Ⅲ'!O23 -> 19,196,706,000 | O44: 0 | U44: 0 | AA44: 0
C45: (보통주) 배당수익율 | I45: =IF(ISERROR(I44/((I49+I50)/2)*100),"-",I44/((I49+I50)/2)) -> 16.04% | O45: =IF(ISERROR(O44/((O49+O50)/2)*100),"-",O44/((O49+O50)/2)) -> 0.00% | U45: =IF(ISERROR(U44/((U49+U50)/2)*100),"-",U44/((U49+U50)/2)) -> 0.00% | AA45: =IF(ISERROR(AA44/((AA49+AA50)/2)*100),"-",AA44/((AA49+AA50)/2)) -> 0.00%
C46: (보통주) 연환산배당율 | I46: =IF(ISERROR(I45*365/I31),"-",I45*365/I31) -> 32.00% | O46: =IF(ISERROR(O45*365/O31),"-",O45*365/O31) -> 0.00% | U46: =IF(ISERROR(U45*365/U31),"-",U45*365/U31) -> 0.00% | AA46: =IF(ISERROR(AA45*365/AA31),"-",AA45*365/AA31) -> 0.00%
C47: (우선주) 기초납입자본금 | I47: 0 | O47: 0 | U47: 0 | AA47: 0
C48: (우선주) 기말납입자본금 | I48: 0 | O48: 0 | U48: 0 | AA48: 0
C49: (보통주) 기초납입자본금 | I49: 119,659,000,000 | O49: 48,200,000,000 | U49: 900,000,000 | AA49: 0
C50: (보통주) 기말납입자본금 | I50: 119,659,000,000 | O50: 119,659,000,000 | U50: 48,200,000,000 | AA50: 900,000,000
D52: ※ 납입자본금은 액면가액이 아닌 발행가액을 기준하여 적용
A57: * 입력도움말 1. 1) 이익 등의 분배방침 내용입력시 내용이 많을 경우 셀높이를 조절하시기 바랍니다. 2. 기수는 표 왼쪽부터 최근 기수를 입력하여 주시기 바랍니다. 3. 산출근거자료표의 사업일수 자동계산을 위해 '기수시작일', '기수종료일'은 0000-00-00 형식으로 입력하시기 바랍니다. 4. 1기의 기초납입자본금은 설립납입자본금으로 입력하시기 바랍니다.

Sheet 2부.Ⅰ
A2: 제 2 부 자산의 투자·운용 및 자산의 구성·변경 현황
A4: Ⅰ. 총자산의 투자·운용 및 구성현황
AA6: (단위 : 백만원, %)
C7: 항 목 | N7: 전기 | V7: 당기 | AD7: 총자산대비 구성비율
N8: 자산총액 | S8: 비율 | V8: 자산총액 | AA8: 비율
C9: 부동산 | N9: 0 | S9: =IFERROR(N9/SUM($N$9:$R$13)*100,"") -> 0.00 | AA9: =IFERROR(V9/SUM($V$9:$Z$13)*100,"") -> 0.00 | AD9: =IFERROR(AA9+AA10,"") -> 0.00
F10: 부동산개발사업 | S10: =IFERROR(N10/SUM($N$9:$R$13)*100,"") -> 0.00 | AA10: =IFERROR(V10/SUM($V$9:$Z$13)*100,"") -> 0.00
C11: 부동산관련 유가증권 | N11: 692,287 | S11: =IFERROR(N11/SUM($N$9:$R$13)*100,"") -> 98.21 | V11: 721,635 | AA11: =IFERROR(V11/SUM($V$9:$Z$13)*100,"") -> 99.49 | AD11: =AA11 -> 99.49
C12: 현금 | N12: 8,290 | S12: =IFERROR(N12/SUM($N$9:$R$13)*100,"") -> 1.18 | V12: 1,706 | AA12: =IFERROR(V12/SUM($V$9:$Z$13)*100,"") -> 0.24 | AD12: =AA12 -> 0.24
C13: 기타 자산 | N13: 4,318 | S13: =IFERROR(N13/SUM($N$9:$R$13)*100,"") -> 0.61 | V13: 1,984 | AA13: =IFERROR(V13/SUM($V$9:$Z$13)*100,"") -> 0.27 | AD13: =AA13 -> 0.27
C14: 총계 | N14: =SUM(N9:R13) -> 704,895 | S14: =IFERROR(N14/SUM($N$14:$R$14)*100,"") -> 100.00 | V14: =SUM(V9:Z13) -> 725,325 | AA14: =IFERROR(V14/SUM($V$14:$Z$14)*100,"") -> 100.00 | AD14: =AA14 -> 100.00
E16: ※ 1. 부동산은 지상권·임차권 등 부동산 사용에 관한 권리, 부동산개발사업, 설립할 때 납입된 주금(株金), 신주발행으로 조성한 자금 및 소유 부동산의 매각대금, 시행령 제27조에 의하여 부동산에 포함되는 자산을 말함(기업구조조정부동산투자회사의 경우, 구조조정부동산을 별도 표시)
E17: 2. 부동산관련 유가증권은 법제2조3항 각 목의 어느 하나에 해당하는 자산을 말함
E18: 3. 현금은 금융기관에의 예치금을 포함하며, 부동산에 포함되는 자산은 제외함
E19: 4. 기타는 자산 중 부동산, 부동산관련 유가증권, 현금에 해당되지 않는 자산을 말함
AL20: ← 필요시 주석 기재
A23: * 입력도움말 1. 자산총액의 입력은 반드시 '원' 단위로 입력하시기 바랍니다. ('백만원' 단위로 자동표시)

Sheet 2부.Ⅰ.1.1)
B2: 1. 부동산(지상권·임차권 등 부동산사용에 관한 권리도 포함)
C4: 1) 소유 부동산별 개요
C6: 부동산명 | I6: 위치 | T6: 완공 (개축)일자 | Y6: 취득일자 | AD6: 담보 및 부채내역 | AL6: 유형 | AM6: 투자대상 | AN6: 대지면적(㎡) | AO6: 연면적(㎡) | AP6: 건축면적(㎡)
C7: 1 | D7: ESR켄달스퀘어리츠 | AL7: 일반 | AM7: 물류 | AN7: 0.00 | AO7: 0.00 | AP7: 0.00
C8: 2
C9: 3
C10: 4
C11: 5
C12: 6
C13: 7
C14: 8
C15: 9
C16: 10
C17: 11
C18: 12
C19: 13
C20: 14
C21: 15
E22: ※ 준공시 잔금지급예정으로 준공후 소유권이 넘어오는 경우는 제외
AL23: ← 필요시 주석 기재
A26: * 입력도움말 1. 부동산이 15개를 초과할 경우 행추가(복사한 셀 삽입)하여 추가 작성(16번부터 이어서 작성)하시기 바라며, 아직 소유한 부동산이 없을 경우 기재하지 마시기 바랍니다. 2. 완공일자와 취득일자는 YYYY-MM-DD 형식으로 입력바랍니다. 3. 개발관련부동산으로 토지만 소유시 부동산명은 토지(개발사업명)로 입력하시고, 하나의 개발사업에 여러 필지가 해당되는 경우에는 위치에 대표번지 입력하고 '외 0필지'로 입력하시기 바랍니다. 4. 준공시 잔금지급예정으로 준공후 소유권이 넘어오는 경우는 소유부동산 표에 입력하지 마시고 표 하단에 별도로 주석처리하시기 바랍니다. 5. 열 AL~AP의 내용을 선택 또는 입력하여 주시기 바랍니다.
A27: <투자대상 분류기준> (분류유형) 투자대상은 투자하는 부동산의 주된 유형에 따라 주택, 오피스, 리테일, 호텔, 물류, 복합형으로 구분된 6가지 유형 중 한가지로 분류함 (복합형) 하나의 리츠가 둘이상 유형의 복수 부동산에 투자하는 경우 복합형으로 분류, 하나의 투자부동산에 둘이상 유형이 존재하여 주된 유형의 구분이 어려운 경우 복합형으로 분류 (지분투자) 지분투자하는 경우에는 투자하는 부동산 유형에 따라 분류하며, 투자유형이 여러개인 경우 복합형 으로 분류 (토지지원) 토지지원리츠는 토지지원으로 개발되는 부동산 유형에 따라 분류

Sheet 2부.Ⅰ.1.2)
C2: 2) 소유 부동산별 금액현황
S4: (단위 : 백만원)
C5: 부동산명 | G5: 취득가액 | K5: 취득후 자본적지출 | O5: 평가손익 | S5: 감가 상각 누계액 | U5: 손상 차손 누계액 | W5: 장부가액
G6: 토지 | I6: 건물 | K6: 토지 | M6: 건물 | O6: 토지 | Q6: 건물
C7: 1 | D7: ='2부.Ⅰ.1.1)'!D7 -> ESR켄달스퀘어리츠 | W7: =G7+I7+K7+M7+O7+Q7-S7-U7 -> 0
C8: 2 | D8: ='2부.Ⅰ.1.1)'!D8 -> 0 | W8: =G8+I8+K8+M8+O8+Q8-S8-U8 -> 0
C9: 3 | D9: ='2부.Ⅰ.1.1)'!D9 -> 0 | W9: 0
C10: 4 | D10: ='2부.Ⅰ.1.1)'!D10 -> 0 | W10: 0
C11: 5 | D11: ='2부.Ⅰ.1.1)'!D11 -> 0 | W11: 0
C12: 6 | D12: ='2부.Ⅰ.1.1)'!D12 -> 0 | W12: 0
C13: 7 | D13: ='2부.Ⅰ.1.1)'!D13 -> 0 | W13: 0
C14: 8 | D14: ='2부.Ⅰ.1.1)'!D14 -> 0 | W14: 0
C15: 9 | D15: ='2부.Ⅰ.1.1)'!D15 -> 0 | W15: 0
C16: 10 | D16: ='2부.Ⅰ.1.1)'!D16 -> 0 | W16: 0
C17: 11 | D17: ='2부.Ⅰ.1.1)'!D17 -> 0 | W17: 0
C18: 12 | D18: ='2부.Ⅰ.1.1)'!D18 -> 0 | W18: 0
C19: 13 | D19: ='2부.Ⅰ.1.1)'!D19 -> 0 | W19: 0
C20: 14 | D20: ='2부.Ⅰ.1.1)'!D20 -> 0 | W20: 0
C21: 15 | D21: ='2부.Ⅰ.1.1)'!D21 -> 0 | W21: 0
Z23: ← 필요시 주석 기재
A26: * 입력도움말 1. 부동산이 15개를 초과할 경우 행추가(복사한 셀 삽입)하여 추가 작성(16번부터 이어서 작성하고 '부동산명'은 2부.Ⅰ.1.1) 시트와 동일하게 작성)하시기 바라며, 아직 소유한 부동산이 없을 경우 기재하지 마시기 바랍니다.

Sheet 2부.Ⅰ.1.3)
C2: 3) 소유 부동산별 임대현황
C4: 부동산명 | I4: 임대가능 면적 (㎡) | N4: 임대면적 (㎡) | R4: 임대율 (임대면적/임대가능면적, %) | W4: 임대차 계약수
C5: 1 | D5: ='2부.Ⅰ.1.1)'!D7 -> ESR켄달스퀘어리츠 | R5: =IFERROR(N5/I5,"") -> 
C6: 2 | D6: ='2부.Ⅰ.1.1)'!D8 -> 0
C7: 3 | D7: ='2부.Ⅰ.1.1)'!D9 -> 0
C8: 4 | D8: ='2부.Ⅰ.1.1)'!D10 -> 0
C9: 5 | D9: ='2부.Ⅰ.1.1)'!D11 -> 0
C10: 6 | D10: ='2부.Ⅰ.1.1)'!D12 -> 0
C11: 7 | D11: ='2부.Ⅰ.1.1)'!D13 -> 0
C12: 8 | D12: ='2부.Ⅰ.1.1)'!D14 -> 0
C13: 9 | D13: ='2부.Ⅰ.1.1)'!D15 -> 0
C14: 10 | D14: ='2부.Ⅰ.1.1)'!D16 -> 0
C15: 11 | D15: ='2부.Ⅰ.1.1)'!D17 -> 0
C16: 12 | D16: ='2부.Ⅰ.1.1)'!D18 -> 0
C17: 13 | D17: ='2부.Ⅰ.1.1)'!D19 -> 0
C18: 14 | D18: ='2부.Ⅰ.1.1)'!D20 -> 0
C19: 15 | D19: ='2부.Ⅰ.1.1)'!D21 -> 0
Z21: ← 필요시 주석 기재
A24: * 입력도움말 1. 부동산이 15개를 초과할 경우 행추가(복사한 셀 삽입)하여 추가 작성(16번부터 이어서 작성 하고 '부동산명'은 2부.Ⅰ.1.1) 시트와 동일하게 작성)하시기 바라며, 아직 소유한 부동산이 없을 경우 기재하지 마시기 바랍니다. 2. 임대내역이 없을 경우 '임대가능 면적, 임대면적, 임대차 계약수' 입력 칸에 0을 입력하시기 바랍니다.

Sheet 2부.Ⅰ.2
B2: 2. 기말 현재 부동산 관련 유가증권 현황
Y4: (단위 : 백만원, %)
C5: 구분 | K5: 종 목 명 | Q5: 취득금액 | V5: 당해 기말 현재 가액 | AB5: 자산구성비
C6: 부동산관련 유가증권 | K6: 이에스알켄달스퀘어에셋1호 | Q6: 534,049 | V6: 534,049 | AB6: 74.01%
C7: 부동산관련 유가증권 | K7: 이에스알켄달스퀘어에셋2호 | Q7: 2,500 | V7: 2,500 | AB7: 0.35%
C8: 부동산관련 유가증권 | K8: 켄달스퀘어전문투자형사모부동산투자신탁6호 | Q8: 37,264 | V8: 37,264 | AB8: 5.16%
C9: 부동산관련 유가증권 | K9: 켄달스퀘어전문투자형사모부동산투자신탁7호 | Q9: 41,127 | V9: 41,127 | AB9: 5.70%
C10: 부동산관련 유가증권 | K10: 켄달스퀘어전문투자형사모부동산투자신탁8호 | Q10: 37,743 | V10: 37,743 | AB10: 5.23%
C11: 부동산관련 유가증권 | K11: 켄달스퀘어전문투자형사모부동산투자신탁11호 | Q11: 42,104 | V11: 42,104 | AB11: 5.83%
C12: 부동산관련 유가증권 | K12: 켄달스퀘어전문투자형사모부동산투자신탁18호 | Q12: 26,848 | V12: 26,848 | AB12: 3.72%
C13: 부동산관련 유가증권
C14: 부동산관련 유가증권
C15: 부동산관련 유가증권
C16: 부동산관련 유가증권
C17: 부동산관련 유가증권
C18: 부동산관련 유가증권
C19: 부동산관련 유가증권
C20: 부동산관련 유가증권
AG22: ← 필요시 주석 기재
A25: * 입력도움말 1. 필요시 행추가(복사한 셀 삽입)하여 추가 작성하시기 바랍니다. 2. 해당사항 없는 항목은 기재하지 마시기 바랍니다.

Sheet 2부.Ⅰ.3
B2: 3. 현금(금융기관 예치내역 포함) 현황
AD4: (단위 : %, 백만원)
E5: 예치 금융상품 | M5: 예치 금융회사 | V5: 이자율 | Z5: 전기예치금 | AF5: 당기예치금 | AL5: 비고
E6: 보통예금 | M6: 신한은행 | V6: 변동금리 | Z6: 8,290 | AF6: 1,706
AP8: ← 필요시 주석 기재
A11: * 입력도움말 1. 필요시 행추가(복사한 셀 삽입)하여 추가 작성하시기 바랍니다. 2. 해당사항 없는 항목은 기재하지 마시기 바랍니다.

Sheet 2부.Ⅰ.4
B2: 4. 기말 기타 자산 현황
Y4: (단위 : 백만원, %)
C5: 구분 | K5: 종 목 명 | Q5: 취득금액 | V5: 당해 기말 현재 가액 | AB5: 비고
C6: 유가증권
C7: 유가증권
C8: 유가증권
C9: 유가증권
C10: 유가증권
C11: 파생상품자산
C12: 파생상품자산
C13: 파생상품자산
C14: 기타자산 | K14: 미수수익 | Q14: 1,059 | V14: 1,059
C15: 기타자산 | K15: 선납세금 | Q15: 926 | V15: 926
C16: 기타자산
E18: * 미수수익은 수익증권 이익분배금 + 예금 미수이자 이자 입니다. | AG18: ← 필요시 주석 기재
A21: * 입력도움말 1. 필요시 행추가(복사한 셀 삽입)하여 추가 작성하시기 바랍니다. 2. 해당사항 없는 항목은 기재하지 마시기 바랍니다.

Sheet 2부.Ⅱ
A2: Ⅱ. 총자산의 변경내역
B4: 1. 당기동안의 부동산 매입·매각
AA5: (단위 : 백만원)
C6: 구분 | F6: 부동산명 | K6: 위치 | S6: 거래일자 | X6: 매매가액 | AB6: 거래비용 | AF6: 비고
E9: ※ 매각의 경우 비고란에 취득한 금액, 보유기간 등 간략히 기재
AL10: ← 필요시 주석 기재
B12: 2. 당기동안의 부동산관련 유가증권 거래내역
E13: - 당기동안에 거래된 부동산관련 유가증권의 거래내역, 거래에 따른 이익현황, 거래비용 등을 간략하게 기재
E15: - 2021.07.16,11.25: 이에스알켄달스퀘어에셋2호위탁관리부동산투자회사_주식매입_446,000주_2,500백만원 - 2021.06.10~11: 켄달스퀘어전문투자형사모부동산투자신탁18호_26,200백만원_거래비용648백만원
B17: 3. 현금(금융기관 예치내역 포함) 변경내역
AD18: (단위 : %, 백만원)
E19: 예치 금융상품 | M19: 예치 금융회사 | V19: 이자율 | Z19: 전기예치금 | AF19: 당기예치금
E20: 보통예금 | M20: 신한은행 | V20: 변동금리 | Z20: 8,290 | AF20: 1,706
AL22: ← 필요시 주석 기재
B24: 4. 기타 자산 변경내역
A29: * 입력도움말 1. 필요시 행추가(복사한 셀 삽입)하여 추가 작성하시기 바랍니다. 2. 해당사항 없는 항목은 기재하지 마시기 바랍니다.

Sheet 3부.Ⅰ
A2: 제 3 부 자산 및 수익과 비용에 관한 사항
A4: Ⅰ. 총수입금액 및 수입구조
C6: 구 분 | O6: 금액(원) | W6: 비율(%) | AE6: 비 고
C7: 부동산 | H7: 임 대 료 | O7: =SUM('3부.Ⅱ.1.1)'!O9:W24) -> 0 | W7: =IFERROR(O7/$O$16,"") -> 0.00%
H8: 분양수익 | O8: 0 | W8: 0.00%
H9: 기타수익 | O9: 0 | W9: 0.00%
C10: 부동산관련 유가증권 | H10: 평가이익 | O10: =SUM('3부.Ⅱ.2'!Q6:U11) -> 0 | W10: 0.00%
H11: 처분이익 | O11: =SUM('3부.Ⅱ.2'!K6:P11) -> 0 | W11: 0.00%
H12: 이자,배당금 등 | O12: =SUM('3부.Ⅱ.2'!V6:AA11) -> 19,680,322,901 | W12: 99.99%
C13: 현금 | H13: 현금관련수익 | O13: =SUM('3부.Ⅱ.3'!AF6:AF14) -> 2,006,419 | W13: 0.01%
C14: 기타자산 | H14: 기타자산관련수익 | O14: =SUM('3부.Ⅱ.4'!O5:W9) -> 0 | W14: 0.00%
C15: 기타 | O15: 13,684 | W15: 0.00%
C16: 총 수 익 | O16: =SUM(O7:V15) -> 19,682,343,004 | W16: =SUM(W7:AD15) -> 100.00%
E17: ※ 부동산관련 유가증권 평가이익란에는 당기손익에 반영되는 평가이익만 포함
E18: ※ 기타란에는 자산별로 구분되지 않는 수익을 기재
AL19: ← 필요시 주석 기재
A23: * 입력도움말 1. 부동산(임대료, 분양수익), 부동산관련 유가증권(평가이익, 처분이익, 이자, 배당금 등) 등의 금액은 뒤 시트와 연결되어 있으므로 수정 불가합니다. 2. 부동산(기타수익), 기타 및 각 항목의 비고, 주석 사항만 직접 기재 바랍니다.

Sheet 3부.Ⅱ.1.1)
A2: Ⅱ. 부문별 상세내역
B4: 1. 부동산(지상권·임차권 등 부동산사용에 관한 권리도 포함)
C6: 1) 부동산 임대료 수익
C8: 부동산명 | O8: 임대료(원) | X8: 비율(%) | AC8: 비 고
C9: 1 | D9: ='2부.Ⅰ.1.1)'!D7 -> ESR켄달스퀘어리츠 | X9: =IFERROR(O9/SUM(O9:W24),"") -> 
C10: 2 | D10: ='2부.Ⅰ.1.1)'!D8 -> 0 | X10: =IFERROR(O10/SUM(O9:W24),"") -> 
C11: 3 | D11: ='2부.Ⅰ.1.1)'!D9 -> 0 | X11: =IFERROR(O11/SUM(O9:W24),"") -> 
C12: 4 | D12: ='2부.Ⅰ.1.1)'!D10 -> 0 | X12: =IFERROR(O12/SUM(O9:W24),"") -> 
C13: 5 | D13: ='2부.Ⅰ.1.1)'!D11 -> 0 | X13: =IFERROR(O13/SUM(O9:W24),"") -> 
C14: 6 | D14: ='2부.Ⅰ.1.1)'!D12 -> 0 | X14: =IFERROR(O14/SUM(O9:W24),"") -> 
C15: 7 | D15: ='2부.Ⅰ.1.1)'!D13 -> 0 | X15: =IFERROR(O15/SUM(O9:W24),"") -> 
C16: 8 | D16: ='2부.Ⅰ.1.1)'!D14 -> 0 | X16: =IFERROR(O16/SUM(O9:W24),"") -> 
C17: 9 | D17: ='2부.Ⅰ.1.1)'!D15 -> 0 | X17: =IFERROR(O17/SUM(O9:W24),"") -> 
C18: 10 | D18: ='2부.Ⅰ.1.1)'!D16 -> 0 | X18: =IFERROR(O18/SUM(O9:W24),"") -> 
C19: 11 | D19: ='2부.Ⅰ.1.1)'!D17 -> 0 | X19: =IFERROR(O19/SUM(O9:W24),"") -> 
C20: 12 | D20: ='2부.Ⅰ.1.1)'!D18 -> 0 | X20: =IFERROR(O20/SUM(O9:W24),"") -> 
C21: 13 | D21: ='2부.Ⅰ.1.1)'!D19 -> 0 | X21: =IFERROR(O21/SUM(O9:W24),"") -> 
C22: 14 | D22: ='2부.Ⅰ.1.1)'!D20 -> 0 | X22: =IFERROR(O22/SUM(O9:W24),"") -> 
C23: 15 | D23: ='2부.Ⅰ.1.1)'!D20 -> 0 | X23: =IFERROR(O23/SUM(O8:W23),"") -> 
C24: 15 | D24: ='2부.Ⅰ.1.1)'!D21 -> 0 | X24: =IFERROR(O24/SUM(O9:W24),"") -> 
AJ26: ← 필요시 주석 기재
A29: * 입력도움말 1. 부동산이 15개를 초과할 경우 행추가(복사한 셀 삽입)하여 추가 작성(16번부터 이어서 작성 하고 '부동산명'은 2부.Ⅰ.1.1) 시트와 동일하게 작성)하시기 바라며, 아직 소유한 부동산이 없을 경우 기재하지 마시기 바랍니다.

Sheet 3부.Ⅱ.1.2)
C2: 2) 부동산 처분수익
AD3: (단위 : 원)
C4: 부동산명 | I4: 취득 가액 | M4: 평가 손익 | P4: 상각 누계액 | T4: 장부 가액 | X4: 매매 가액 | AB4: 처분 손익 | AF4: 비율 (%) | AI4: 비고
C5: 1 | AF5: =IFERROR(AB5/SUM(AB5:AE9),"") -> 
C6: 2 | AF6: =IFERROR(AB6/SUM(AB5:AE9),"") -> 
C7: 3 | AF7: =IFERROR(AB7/SUM(AB5:AE9),"") -> 
C8: 4 | AF8: =IFERROR(AB8/SUM(AB5:AE9),"") -> 
C9: 5 | AF9: =IFERROR(AB9/SUM(AB5:AE9),"") -> 
E10: ※ 부동산개발사업을 통한 분양수익은 비고란에 구분 기재
AL11: ← 필요시 주석 기재
A15: * 입력도움말 1. 필요시 행추가(복사한 셀 삽입)하여 추가 작성하시기 바랍니다. 2. 해당사항 없는 항목은 기재하지 마시기 바랍니다.

Sheet 3부.Ⅱ.2
B2: 2. 부동산 관련 유가증권 처분손익, 평가손익, 이자 및 배당금
AF4: (단위 : 원)
C5: 구 분 | K5: 매매손익 | Q5: 평가손익 | V5: 이자 및 배당금 | AB5: 비율 (%) | AG5: 비 고
C6: 1 | D6: 이에스알켄달스퀘어에셋1호 | V6: 15,280,202,252 | AB6: =IFERROR(SUM(K6:AA6)/SUM(K6:AA11),"") -> 77.64%
C7: 1 | D7: 켄달스퀘어전문투자형사모부동산투자신탁6호 | V7: 962,253,225 | AB7: =IFERROR(SUM(K7:AA7)/SUM(K7:AA12),"") -> 21.87%
C8: 2 | D8: 켄달스퀘어전문투자형사모부동산투자신탁7호 | V8: 1,111,889,287 | AB8: =IFERROR(SUM(K8:AA8)/SUM(K6:AA11),"") -> 5.65%
C9: 3 | D9: 켄달스퀘어전문투자형사모부동산투자신탁8호 | V9: 843,297,060 | AB9: =IFERROR(SUM(K9:AA9)/SUM(K6:AA11),"") -> 4.28%
C10: 4 | D10: 켄달스퀘어전문투자형사모부동산투자신탁11호 | V10: 973,066,737 | AB10: =IFERROR(SUM(K10:AA10)/SUM(K6:AA11),"") -> 4.94%
C11: 5 | D11: 켄달스퀘어전문투자형사모부동산투자신탁18호 | V11: 509,614,340 | AB11: =IFERROR(SUM(K11:AA11)/SUM(K6:AA11),"") -> 2.59%
AL13: ← 필요시 주석 기재
A16: * 입력도움말 1. 필요시 행추가(복사한 셀 삽입)하여 추가 작성하시기 바랍니다. 2. 해당사항 없는 항목은 기재하지 마시기 바랍니다.

Sheet 3부.Ⅱ.3
B2: 3. 현금(금융기관 예치내역 포함)
AD4: (단위 : %, 원)
E5: 예치 금융상품 | M5: 예치 금융회사 | V5: 이자율 | Z5: 전기예치금 발생 수익 | AF5: 당기예치금 발생 수익 | AL5: 비고
E6: 보토예금 | M6: KB국민은행 | V6: 변동금리 | Z6: 691,989
E7: 보통예금 | M7: 중소기업은행 | V7: 변동금리 | Z7: 432,639,404 | AF7: 56,799
E8: 보통예금 | M8: 신한은행 | V8: 변동금리 | Z8: 4,262,386 | AF8: 1,949,620
AP10: ← 필요시 주석 기재
A13: * 입력도움말 1. 필요시 행추가(복사한 셀 삽입)하여 추가 작성하시기 바랍니다. 2. 해당사항 없는 항목은 기재하지 마시기 바랍니다.

Sheet 3부.Ⅱ.4
B2: 4. 기타 자산 수익
C4: 구 분 | O4: 금 액(원) | X4: 비율(%) | AC4: 비 고
C5: 1 | X5: =IFERROR(O5/SUM(O5:W9),"") -> 
C6: 2 | X6: =IFERROR(O6/SUM(O5:W9),"") -> 
C7: 3 | X7: =IFERROR(O7/SUM(O5:W9),"") -> 
C8: 4 | X8: =IFERROR(O8/SUM(O5:W9),"") -> 
C9: 5 | X9: =IFERROR(O9/SUM(O5:W9),"") -> 
AJ11: ← 필요시 주석 기재
A14: * 입력도움말 1. 필요시 행추가(복사한 셀 삽입)하여 추가 작성하시기 바랍니다. 2. 해당사항 없는 항목은 기재하지 마시기 바랍니다.

Sheet 3부.Ⅲ
A2: Ⅲ. 총 비용 및 지출구조
C4: 구 분 | O4: 금액(원) | W4: 비율(%) | AE4: 비 고
C5: 부동산 | H5: 분양원가 | W5: =IFERROR(O5/$O$14,"") -> 0.00%
H6: 감가상각비 | W6: =IFERROR(O6/$O$14,"") -> 0.00%
H7: 기타비용 | W7: =IFERROR(O7/$O$14,"") -> 0.00%
C8: 부동산관련 유가증권 | H8: 평가손실 | W8: =IFERROR(O8/$O$14,"") -> 0.00%
H9: 처분손실 | O9: =+'5부.Ⅱ'!O62 -> 0 | W9: =IFERROR(O9/$O$14,"") -> 0.00%
H10: 기타비용 | O10: 387,110,492 | W10: 48.81%
C11: 현금 | H11: 현금관련비용 | W11: =IFERROR(O11/$O$14,"") -> 0.00%
C12: 기타자산 | H12: 기타자산관련비용 | W12: =IFERROR(O12/$O$14,"") -> 0.00%
C13: 기타 | O13: 406,031,069 | W13: 51.19%
C14: 총 비 용 | O14: =SUM(O5:V13) -> 793,141,561 | W14: =SUM(W5:AD13) -> 100.00%
E15: ※ 부동산관련 유가증권 평가손실란에는 당기손익에 반영되는 평가손실만 포함
E16: ※ 기타란에는 자산별로 구분되지 않는 비용을 기재
AL17: ← 필요시 주석 기재

Sheet 3부.Ⅳ.1
A2: Ⅳ. 상세내역
B4: 1. 부동산 영업경비
O6: (단위 : 원)
C7: 구 분 | K7: 합계 | L7: ESR켄달스퀘어리츠 | M7: 현금 | N7: 기타자산 | O7: 기타
C8: 분양원가 | K8: =SUM(L8:Z8) -> 0 | L8: 0
C9: 급여 | K9: =SUM(L9:Z9) -> 57,000,000 | L9: 57,000,000
C10: 상여 | K10: 0 | L10: 0
C11: 퇴직급여 | K11: 0 | L11: 0
C12: 복리후생비 | K12: 0 | L12: 0
C13: 자산관리수수료 (AMC수수료) | K13: 0 | L13: 0
C14: 부동산관리수수료 (PM, FM 등) | K14: 0 | L14: 0
C15: 자산보관수수료 | K15: 5,000,000 | L15: 5,000,000
C16: 일반사무 위탁수수료 | K16: 43,729,700 | O16: 43,729,700
C17: 기타지급수수료 | K17: 226,110,492 | L17: 226,110,492
C18: 유형자산 감가상각비 | K18: 0 | L18: 0
C19: 투자부동산 감가상각비 | K19: 0 | L19: 0
C20: 무형자산 감가상각비 | K20: 0
C21: 세금과공과 | K21: 0 | L21: 0
C22: 광고선전비 | K22: 99,000,000 | L22: 99,000,000
C23: 보험료 | K23: 0 | L23: 0
C24: 임차료 | K24: 0 | L24: 0
C25: 교육훈련비 | K25: 0 | L25: 0
C26: 여비교통비 | K26: 0 | L26: 0
C27: 통신비 | K27: 0 | L27: 0
C28: 수선유지비 | K28: 0 | L28: 0
C29: 청소비 | K29: 0 | L29: 0
C30: 수도광열비 | K30: 0 | L30: 0
C31: 대손상각비 | K31: 0 | L31: 0
C32: 접대비 | K32: 0 | L32: 0
C33: 판매촉진비 | K33: 0 | L33: 0
C34: 이자비용 | K34: 0 | L34: 0
C35: 금융리스이자비용 | K35: 0 | L35: 0
C36: 기타영업비용 | K36: 0 | L36: 0
P38: ← 필요시 주석 기재
A41: * 입력도움말 1. 필요시 열추가(복사한 셀 삽입)하여 추가 작성하시기 바랍니다. 2. 해당사항 없는 항목은 기재하지 마시기 바랍니다. 3. 부동산과 부동산관련 유가증권은 각각 기재하시되, 현금과 기타자산은 하나의 항목으로 기재바랍니다.

Sheet 3부.Ⅳ.2
B2: 2. 업무위탁비용
C4: 구 분 | I4: 종 류 | L4: 위탁기관 | N4: 대상물건, 위탁비율, 계산방법, 지급시기 및 지급방법 | AF4: 위탁비용 (원)
C5: 자산관리회사 | I5: 기본보수(매입) | L5: 켄달스퀘어리츠운용㈜ | N5: a. 부동산: 부동산 매입가액 X 1.0% * 단, 자산관리자의 계열회사가 집합투자업자인 집합투자기구 또는 법인세법 제51조의 2 및 동 시행령 제86조의 2에 의한 자산관리회사인 프로젝트금융투자회사가 보유한 부동산의 경우, 0.75%로 함. b. 집합투자증권 및 지분증권 등 부동산을 제외한 대상자산: 대상자산의 기초자산인 부동산의 평가금액 X 1.0% X 위탁자의 지분율 * 단, (i) 위 대상자산이 부동산투자회사법상 부동산투자회사의 주식이고, 자산관리자 또는 자산관리자의 계열회사가 해당 부동산투자회사의 자산관리회사인 경우, 또는 (ii) 위 대상자산이 부동산집합투자기구가 발행한 집합투자증권이고, 자산관리자의 계열회사가 해당 부동산집합투자기구의 집합투자업자인 경우, 0.75%로 함. => 취득일로부터 1주일 이내에 매입보수를 자산관리자에게 지급한다. | AF5: 647,740,713
I6: 성과보수(매입)
I7: 기본보수(운용) | N7: a. 부동산:(부동산 매입가액+매입부대비용)x연0.5% b. 집합투자증권 및 지분증권 등 부동산을 제외한 대상자산:(위탁자가 해당 대상자산을 매입하는 시점에 그 대상자산의 기초자산인 부동산의 평가금액+매입부대비용)x연0.5%x위탁자의 지분율 => 결산기 주주총회의 승인을 득한 날로부터 1주일 이내에 운용보수를 자산관리자에게 지급한다. | AF7: ='5부.Ⅱ'!U24 -> 0
I8: 성과보수(운용) | N8: (당해연도 1주당 운용성과보수 차감 전 배당액 - 과거 사업연도 1주당 운용성과보수 차감 전 배당액 중 최대액) X 당해연도 가중평균 총 발행 주식수 X 25% => 마지막 사업연도 종료일(11월 30일)에 외부감사인의 결산보고서 주주총회 승인을 득한 날로부터 1주일 이내에 지급한다.
I9: 기본보수(매각) | N9: a. 대산자산의 매각 급액 X 0.5% => 각 처분일이 속한 결산기에 외부감사인의 결산보고서를 작성하여 주주총회의 승인을 득한 날로부터 1주일 이내에 지급한다.
I10: 기본보수(개발) | N10: 토지의 매입 완료일로부터 건물의 (임시)사용승인일까지 발생하는 공사비, 국민주택채권매각차손, 법률자문수수료, 건설공사보험료, 안전관리예치금 보험료, 설계비, 감리비, 인허가비용, 광고홍보비, 민원처리비, 부담금 등 취득세 과표에 포함되는 모든 비용 및 취득세(단, 토지관련비용, 금융비용 및 운영비용은 제외)를 포함한 금액의 5% 상당액 => 총 개발보수 중 해당 사업연도에 해당하는 금액을 일할계산하여 결산기 주주총회의 승인을 득한 날로부터 1주일 이내에 운용보수를 자산관리자에게 지급한다.
C11: 사무수탁회사 | I11: 위탁보수 | L11: 신한아이타스㈜ | N11: a. 주식이 증권거래소에 상장된 날의 직전일까지는 결산기별 2,000만원 b. 주식이 증권거래소에 상장된 날부터는 결산기별 4,250만원 c. 추가로 매입하는 자산에 대하여 추가매입자산의 가중평균매입가액*정해진 보수율(0.005%~0.01%) => 매 결산기마다 해당 결산기 말일 이후 수탁자의 청구일로부터 14일 이내에 현금으로 지급한다. | AF11: ='5부.Ⅱ'!U27 -> 43,729,700
C12: 자산보관회사 | I12: 위탁보수 | L12: ㈜신한은행 | N12: 최초 설정자금이 들어온 날부터 본계약의 종료일까지 연정액 일천만원(VAT별도) => 매 기별로 청구일로부터 7영업일 이내에 현금 지급한다. | AF12: ='5부.Ⅱ'!U26 -> 5,000,000
C13: 시설관리회사 | I13: 위탁보수
C14: 임대관리회사 | I14: 위탁보수
C15: 재산관리회사 | I15: 위탁보수
C16: 합 계 | AF16: =SUM(AF5:AK15) -> 696,470,413
E17: ※ 위탁보수 : 자산관리회사, 자산보관회사 등 위탁기관 및 대상물건, 위탁비율, 계산방법, 지급시기 및 지급방법을 위탁기관 별로 구체적으로 기재하며, 해당 기간의 발생주의에 따른 금액을 위탁비용으로 기재
E18: * 자산관리회사 수익증권매입보수 647,740,713원은 영업비용이 아닌 수익증권 원가에 산입하여 회계처리함. | AL18: ← 필요시 주석 기재
A22: * 입력도움말 1. 표 안의 행은 입력사항에 맞춰 높이를 조절하시면 됩니다. 2. 부동산별로 위탁수수료 계산방법이 다를 경우에는 대상물건 등의 해당 셀 안의 내용입력시 부동산별로 입력하시면 됩니다.

Sheet 3부.Ⅴ
A2: Ⅴ. 자기자본수익률
AF4: (단위 : %)
C5: 구 분 | O5: 제 | P5: =표지!F8 -> 4 | R5: 기 | U5: 제 | V5: 3 | X5: 기 | AA5: 제 | AB5: 2 | AD5: 기 | AG5: 제 | AH5: 1 | AJ5: 기
C6: 당해회사수익률 | N6: =IFERROR((((1+(N12/((N14+N15)/2)))^(12/N13))-1)*100,"") -> 5.59 | T6: =IFERROR((((1+(T12/((T14+T15)/2)))^(12/T13))-1)*100,"") -> (0.21) | Z6: =IFERROR((((1+(Z12/((Z14+Z15)/2)))^(12/Z13))-1)*100,"") -> (2.14) | AF6: =IFERROR((((1+(AF12/((AF14+AF15)/2)))^(12/AF13))-1)*100,"") -> (8.13)
E7: ※ 수익률은 회계적 자기자본이익률(Return on Equity)로서 연단위로 환산하며 다음과 같이 계산함 결산기수익률=(당기순이익/[(연기초납입자본금+연기말납입자본금)/2]) ※ 납입자본금 = 자본금 + 자본잉여금 ※ 상기산식은 1기 사업연도가 12개월일 경우를 가정한 것으로, 1기의 사업연도가 6개월일 경우 상기 산식을 준용하여 최근 1년간 분기별 연환산 자기자본수익율을 제시할 것 ※ 수익률은 소수점 둘째 자리까지 기재할 것
AL8: ← 필요시 주석 기재
C10: * 산출근거자료
C11: 구 분 | O11: 제 | P11: =P5 -> 4 | R11: 기 | U11: 제 | V11: =V5 -> 3 | X11: 기 | AA11: 제 | AB11: =AB5 -> 2 | AD11: 기 | AG11: 제 | AH11: =AH5 -> 1 | AJ11: 기
C12: 결산기누적순이익 | N12: ='5부.Ⅱ'!U73 -> 18,889,201,443 | T12: (496,229,966) | Z12: (1,321,492,232) | AF12: (125,133,733)
C13: 결산기누적개월수 | N13: 6 | T13: 6 | Z13: 6 | AF13: 4
C14: 연기초납입자본금 | N14: ='5부.Ⅰ'!AG112+'5부.Ⅰ'!AG115 -> 685,109,342,670 | T14: 240,741,961,760 | Z14: 4,492,289,000 | AF14: 4,492,289,000
C15: 연기말납입자본금 | N15: ='5부.Ⅰ'!U112+'5부.Ⅰ'!U115 -> 684,362,130,210 | T15: 685,109,342,670 | Z15: 240,741,961,760 | AF15: 4,492,289,000
A17: * 입력도움말 1. 기수는 표 왼쪽부터 최근 기수를 입력하여 주시기 바랍니다.

Sheet 4부.Ⅰ.1
A2: 제 4 부 부동산개발사업에 대한 투자 현황
A4: Ⅰ. 부동산개발사업의 현황
B6: 1. 개요
AD8: (단위 : 백만원)
C9: 개발사업명 | H9: 소재지 | M9: 개발규모(㎡) | Q9: 준공 예정일 | U9: 공정률 | X9: 총사업비 | AB9: 총 투자금액 | AF9: 기 투자금액 | AJ9: 비고 | AL9: 투자대상
E15: ※ 1. 총사업비는 당해 개발사업의 총사업비를 말함 2. 총투자금액은 당해 부동산투자회사가 투자하여야 하는 총금액을 말함 3. 기투자금액이란 당해 부동산투자회사가 이미 투자한 총금액을 말함
AL16: ← 필요시 주석 기재
A19: * 입력도움말 1. 필요시 행추가(복사한 셀 삽입)하여 추가 작성하시기 바랍니다. 2. 해당사항 없는 항목은 기재하지 마시기 바랍니다. 3. 개발규모, 공정률, 총사업비, 총투자금액, 기투자금액은 숫자로만 입력하시고, 자세한 사항은 비고 혹은 4부.Ⅰ.2 시트를 이용 하시기 바랍니다. 4. 준공예정일은 YYYY-MM-DD 형식으로 입력 바랍니다. 5. AL열 투자대상을 선택하여 주시기 바랍니다.

Sheet 4부.Ⅰ.2
B2: 2. 당기에 추진중인 부동산개발사업 현황
B4: 1) 부동산개발사업명(1)
AL5: - 사업계획서가 작성되어 이사회 결의를 거친 프로젝트 및 건설중인 프로젝트를 의미하며, 이 경우 기 작성된 사업계획서를 바탕으로 하여 다음의 순으로 내용을 개략 나타냄 · 사업의 개요 · 자금의 조달, 투자 및 회수에 관한 사항 · 추정손익에 관한 사항 · 사업의 위험에 관한 사항 · 공사시공 등 외용역에 관한 사항 · 그 밖에 투자자를 보호하기 위하여 필요한 사항
B11: 2) 부동산개발사업명(2)
B18: 3) 장래 예정인 부동산개발사업 현황
AL19: - 사업계획서 작성 이전 단계에 있으나, 개발 추진가능성이 상당하고 정보의 공개가 당사의 이익에 해가 되지 않는다면, 대상 프로젝트에 대한 개략적 정보를 나타냄
A26: * 입력도움말 1. 필요시 행추가(복사한 셀 삽입)하여 추가 작성하시기 바랍니다. 2. 해당사항 없는 항목은 기재하지 마시기 바랍니다.

Sheet 5부.Ⅰ
B2: 제 5 부 재무제표에 관한 사항
B4: Ⅰ. 재무상태표
M6: 당기 | P6: 제 | Q6: =표지!F8 -> 4 | R6: 기 | T6: 기말 | W6: 기준일 | AA6: =표지!G6 -> 2021.11.30 | AE6: 현재
M7: 전기 | P7: 제 | Q7: =Q6-1 -> 3 | R7: 기 | T7: 기말 | W7: 기준일 | AA7: 2021.05.31 | AE7: 현재
D8: 회사명: | G8: =표지!E28 -> 이에스알켄달스퀘어위탁관리부동산투자회사(주) | AI8: (단위: 원)
D9: 과 목 | R9: 제 | S9: =Q6 -> 4 | T9: (당)기 | W9: =T6 -> 기말 | AD9: 제 | AE9: =Q7 -> 3 | AF9: (전)기 | AI9: =T7 -> 기말
O10: 금 액 | AA10: 금 액
D11: I. 자 산
A12: A000000 | D12: 1. 유동자산 | U12: =+O13+O14+O15+O16+O17+O18+O19+O20+O21+O22+O23+O24+O25+O26+O32+O33+O34+O35 -> 3,690,555,944 | AG12: =+AA13+AA14+AA15+AA16+AA17+AA18+AA19+AA20+AA21+AA22+AA23+AA24+AA25+AA26+AA32+AA33+AA34+AA35 -> 12,608,018,703
A13: A011000 | D13: 1) 현금및현금성자산 | O13: 1,706,287,357 | AA13: 8,289,912,266
A14: A012000 | D14: 2) 단기금융상품
A15: A013000 | D15: 3) 매출채권
A16: A014000 | D16: 4) 미청구공사
A17: A015000 | D17: 5) 미수수익 | O17: 1,058,636,957 | AA17: 4,311,171,447
A18: A016000 | D18: 6) 분양미수금
A19: A017000 | D19: 7) 기타미수금
A20: A018000 | D20: 8) 선급금
A21: A019000 | D21: 9) 선급비용
A22: A020000 | D22: 10) 부가세대급금
A23: A021000 | D23: 11) 선급법인세 | O23: 925,631,630 | AA23: 6,934,990
A24: A022000 | D24: 12) 단기대여금
A25: A023000 | D25: 13) 유가증권
A26: A024000 | D26: 14) 재고자산 | O26: =+O27+O28+O29+O30+O31 -> 0 | AA26: =+AA27+AA28+AA29+AA30+AA31 -> 0
A27: A024110 | D27: 용지
A28: A024120 | D28: 미성공사
A29: A024130 | D29: 완성주택
A30: A024140 | D30: 미완성주택
A31: A024990 | D31: 기타
A32: A025000 | D32: 15) 유동파생상품자산
A33: A026000 | D33: 16) 유동보증금
A34: A027000 | D34: 17) 매각예정 비유동자산
A35: A099000 | D35: 18) 기타유동자산
A36: B000000 | D36: 2. 비유동자산 | U36: =+O37+O38+O39+O40+O46+O60+O71+O75+O76+O77+O78 -> 721,634,755,449 | AG36: =+AA37+AA38+AA39+AA40+AA46+AA60+AA71+AA75+AA76+AA77+AA78 -> 692,287,014,736
A37: B011000 | D37: 1) 장기금융상품
A38: B012000 | D38: 2) 장기매출채권
A39: B013000 | D39: 3) 장기대여금
A40: B014000 | D40: 4) 유가증권 | O40: =+O41+O42+O43+O44+O45 -> 721,634,755,449 | AA40: =+AA41+AA42+AA43+AA44+AA45 -> 692,287,014,736
A41: B014110 | D41: 매도가능금융자산
A42: B014120 | D42: 만기보유금융자산
A43: B014130 | D43: 관계기업투자 | O43: 185,085,755,449 | AA43: 158,238,014,736
A44: B014140 | D44: 종속기업투자 | O44: 536,549,000,000 | AA44: 534,049,000,000
A45: B014990 | D45: 기타
A46: B015000 | D46: 5) 유형자산 | O46: =+O47+O48+O49+O50+O51+O52+O53+O54+O55+O56+O57+O58+O59 -> 0 | AA46: =+AA47+AA48+AA49+AA50+AA51+AA52+AA53+AA54+AA55+AA56+AA57+AA58+AA59 -> 0
A47: B015110 | D47: 토지
A48: B015111 | D48: 손상차손누계액(유형자산-토지)
A49: B015112 | D49: 기타(유형자산-토지)
A50: B015120 | D50: 건물
A51: B015121 | D51: 감가상각누계액(유형자산-건물)
A52: B015122 | D52: 손상차손누계액(유형자산-건물)
A53: B015123 | D53: 기타(유형자산-건물)
A54: B015130 | D54: 건설중인자산
A55: B015131 | D55: 기타(건설중인자산)
A56: B015990 | D56: 기타유형자산
A57: B015991 | D57: 감가상각누계액(유형자산-기타유형자산)
A58: B015992 | D58: 손상차손누계액(유형자산-기타유형자산)
A59: B015993 | D59: 기타(유형자산-기타유형자산)
A60: B016000 | D60: 6) 투자부동산 | O60: =+O61+O62+O63+O64+O65+O66+O67+O68+O69+O70 -> 0 | AA60: =+AA61+AA62+AA63+AA64+AA65+AA66+AA67+AA68+AA69+AA70 -> 0
A61: B016110 | D61: 토지
A62: B016111 | D62: 손상차손누계액(투자부동산-토지)
A63: B016112 | D63: 기타(투자부동산-토지)
A64: B016120 | D64: 건물
A65: B016121 | D65: 감가상각누계액(투자부동산-건물)
A66: B016122 | D66: 손상차손누계액(투자부동산-건물)
A67: B016123 | D67: 기타(투자부동산-건물)
A68: B016130 | D68: 건설중인자산
A69: B016131 | D69: 기타(건설중인자산)
A70: B016990 | D70: 기타
A71: B017000 | D71: 7) 무형자산 | O71: =+O72+O73+O74 -> 0 | AA71: =+AA72+AA73+AA74 -> 0
A72: B017110 | D72: 소프트웨어
A73: B017120 | D73: 회원권
A74: B017990 | D74: 기타
A75: B018000 | D75: 8) 비유동보증금
A76: B019000 | D76: 9) 비유동파생상품자산
A77: B020000 | D77: 10) 금융리스채권
A78: B099000 | D78: 110) 기타비유동자산
A79: C000000 | D79: 자 산 총 계 | U79: =U12+U36 -> 725,325,311,393 | AG79: =AG12+AG36 -> 704,895,033,439
D80: Ⅱ. 부채
A81: D000000 | D81: 1. 유동부채 | U81: =+O82+O83+O84+O85+O86+O87+O88+O89+O90+O91+O92+O93+O94+O95+O96+O97+O98+O99 -> 922,371,809 | AG81: =+AA82+AA83+AA84+AA85+AA86+AA87+AA88+AA89+AA90+AA91+AA92+AA93+AA94+AA95+AA96+AA97+AA98+AA99 -> 70,546,700
A82: D011000 | D82: 1) 매입채무
A83: D012000 | D83: 2) 초과청구공사
A84: D013000 | D84: 3) 분양선수금
A85: D014000 | D85: 4) 기타선수금
A86: D015000 | D86: 5) 선수수익
A87: D016000 | D87: 6) 미지급금 | O87: 750,843,383 | AA87: 69,758,000
A88: D017000 | D88: 7) 미지급비용 | O88: 170,739,726
A89: D018000 | D89: 8) 예수금 | O89: 788,700 | AA89: 788,700
A90: D019000 | D90: 9) 부가세예수금
A91: D020000 | D91: 10) 미지급법인세
A92: D021000 | D92: 11) 미지급배당금
A93: D022000 | D93: 12) 단기차입금
A94: D023000 | D94: 13) 유동성장기차입금
A95: D024000 | D95: 14) 유동사채
A96: D025000 | D96: 15) 유동보증금
A97: D026000 | D97: 16) 유동파생상품부채
A98: D027000 | D98: 17) 유동충당부채
A99: D099000 | D99: 18) 기타유동부채
A100: E000000 | D100: 2. 비유동부채 | U100: =+O101+O102+O103+O104+O105+O106+O107+O108+O109 -> 20,000,000,000 | AG100: =+AA101+AA102+AA103+AA104+AA105+AA106+AA107+AA108+AA109 -> 0
A101: E011000 | D101: 1) 장기매입채무
A102: E012000 | D102: 2) 장기미지급금
A103: E013000 | D103: 3) 장기차입금 | O103: 20,000,000,000
A104: E014000 | D104: 4) 비유동사채
A105: E015000 | D105: 5) 비유동보증금
A106: E016000 | D106: 6) 비유동파생상품부채
A107: E017000 | D107: 7) 순확정급여채무
A108: E018000 | D108: 8) 비유동충당부채
A109: E099000 | D109: 9) 기타비유동부채
A110: F000000 | D110: 부 채 총 계 | U110: =U81+ U100 -> 20,922,371,809 | AG110: =AG81+ AG100 -> 70,546,700
D111: Ⅲ. 자 본
A112: G000000 | D112: 1. 자본금 | U112: =+O113+O114 -> 143,259,000,000 | AG112: =+AA113+AA114 -> 143,259,000,000
A113: G011000 | D113: 1) 보통주자본금 | O113: 143,259,000,000 | AA113: 143,259,000,000
A114: G012000 | D114: 2) 종류주자본금
A115: H000000 | D115: 2. 자본잉여금 | U115: =+O116+O117 -> 541,103,130,210 | AG115: =+AA116+AA117 -> 541,850,342,670
A116: H011000 | D116: 1) 주식발행초과금 | O116: 541,103,130,210 | AA116: 541,850,342,670
A117: H099000 | D117: 2) 기타
A118: I000000 | D118: 3. 자본조정 | U118: =+O119+O120 -> 0 | AG118: =+AA119+AA120 -> 0
A119: I011000 | D119: 1) 주식할인발행차금
A120: I099000 | D120: 2) 기타
A121: J000000 | D121: 4. 기타포괄손익누계액 | U121: =+O122+O123+O124+O125+O126 -> 0 | AG121: =+AA122+AA123+AA124+AA125+AA126 -> 0
A122: J011000 | D122: 1) 유가증권평가손익
A123: J012000 | D123: 2) 파생상품평가손익
A124: J013000 | D124: 3) 표시통화환산손익
A125: J014000 | D125: 4) 재평가잉여금
A126: J099000 | D126: 5) 기타
A127: K000000 | D127: 5. 이익잉여금(결손금) | U127: 20,040,809,374 | AG127: 19,715,144,069
A128: L000000 | D128: 자 본 총 계 | U128: =+O113+O114+O116+O117+O119+O120+O122+O123+O124+O125+O126+U127 -> 704,402,939,584 | AG128: =+AA113+AA114+AA116+AA117+AA119+AA120+AA122+AA123+AA124+AA125+AA126+AG127 -> 704,824,486,739
A129: M000000 | D129: 부 채 및 자 본 총 계 | U129: =U110+U128 -> 725,325,311,393 | AG129: =AG110+AG128 -> 704,895,033,439
AM131: ← 필요시 주석 기재
B134: * 입력도움말 1. 계정과목은 수정하지 마시기 바랍니다.(일치하는 계정과목이 없는경우 해당 대분류 아래 '기타'에 입력) 2. 해당하는 계정과목에만 금액을 입력하시고, 그외는 기재하지 마시기 바랍니다. 3. 당기는 당기말, 전기는 전기말 기준으로 입력하시기 바랍니다. 4. 해당 계정과목과 관련된 대손충당금, 현재가치할인차금 등을 차감한 순액으로 입력하시기 바랍니다. 5. 자본조정, 결손금 등 음수인 계정과목은 숫자 앞에 '-'를 붙여 음수로 입력하시기 바랍니다. 6. 표 왼쪽에 적혀있는 코드는 수정 및 삭제하지 마시기 바랍니다.

Sheet 5부.Ⅱ
B2: Ⅱ. 손익계산서
J4: 당기 | L4: 제 | M4: ='5부.Ⅰ'!Q6 -> 4 | N4: 기 | P4: 기말 | S4: 시작일 | V4: =표지!D6 -> 2021.06.01 | Z4: 종료일 | AC4: =표지!G6 -> 2021.11.30
J5: 전기 | L5: 제 | M5: ='5부.Ⅰ'!Q7 -> 3 | N5: 기 | P5: 기말 | S5: 시작일 | V5: 2020.12.01 | Z5: 종료일 | AC5: ='5부.Ⅰ'!AA7 -> 2021.05.31
D6: 회사명: | G6: =표지!E28 -> 이에스알켄달스퀘어위탁관리부동산투자회사(주) | AI6: (단위: 원)
D7: 과 목 | S7: 제 | T7: =M4 -> 4 | U7: (당)기 | AE7: 제 | AF7: =M5 -> 3 | AG7: (전)기
A8: 코 드 | O8: 금 액 | AA8: 금 액
O9: 최근3개월 | U9: 당기누적 | AA9: 최근3개월 | AG9: 전기누적
A10: N000000 | D10: Ⅰ. 영업수익 | O10: =+O11+O12+O13+O14+O15+O16+O17 -> 4,400,120,649 | U10: =+U11+U12+U13+U14+U15+U16+U17 -> 19,680,322,901 | AA10: =+AA11+AA12+AA13+AA14+AA15+AA16+AA17 -> 4,307,058,953 | AG10: =+AG11+AG12+AG13+AG14+AG15+AG16+AG17 -> 4,307,171,829
A11: N011000 | D11: 1) 분양수익
A12: N012000 | D12: 2) 임대료수익
A13: N013000 | D13: 3) 관리비수익
A14: N014000 | D14: 4) 부동산평가수익
A15: N015000 | D15: 5) 배당금수익 | O15: 4,400,120,649 | U15: 19,680,322,901 | AA15: 4,307,058,953 | AG15: 4,307,171,829
A16: N016000 | D16: 6) 금융리스이자수익
A17: N099000 | D17: 7) 기타영업수익
A18: O000000 | D18: Ⅱ. 영업비용 | O18: =+O19+O20+O21+O22+O23+O24+O25+O26+O27+O28+O29+O30+O31+O32+O33+O34+O35+O36+O37+O38+O39+O40+O41+O42+O43+O44+O45+O46+O47 -> 164,912,442 | U18: =+U19+U20+U21+U22+U23+U24+U25+U26+U27+U28+U29+U30+U31+U32+U33+U34+U35+U36+U37+U38+U39+U40+U41+U42+U43+U44+U45+U46+U47 -> 430,840,192 | AA18: =+AA19+AA20+AA21+AA22+AA23+AA24+AA25+AA26+AA27+AA28+AA29+AA30+AA31+AA32+AA33+AA34+AA35+AA36+AA37+AA38+AA39+AA40+AA41+AA42+AA43+AA44+AA45+AA46+AA47 -> 145,146,566 | AG18: =+AG19+AG20+AG21+AG22+AG23+AG24+AG25+AG26+AG27+AG28+AG29+AG30+AG31+AG32+AG33+AG34+AG35+AG36+AG37+AG38+AG39+AG40+AG41+AG42+AG43+AG44+AG45+AG46+AG47 -> 5,512,323,574
A19: O011000 | D19: 1) 분양원가
A20: O012000 | D20: 2) 급여 | O20: 28,500,000 | U20: 57,000,000 | AA20: 28,500,000 | AG20: 57,000,000
A21: O013000 | D21: 3) 상여
A22: O014000 | D22: 4) 퇴직급여
A23: O015000 | D23: 5) 복리후생비
A24: O016000 | D24: 6) 자산관리수수료(AMC수수료) | O24: 0 | AG24: 2,530,090,830
A25: O017000 | D25: 7) 부동산관리수수료(PM, FM 등)
A26: O018000 | D26: 8) 자산보관수수료 | O26: 2,486,339 | U26: 5,000,000 | AA26: 2,527,473 | AG26: 4,978,597
A27: O019000 | D27: 9) 일반사무위탁수수료 | O27: 21,781,066 | U27: 43,729,700 | AA27: 21,483,297 | AG27: 39,780,000
A28: O020000 | D28: 10) 기타지급수수료 | O28: 13,145,037 | U28: 226,110,492 | AA28: 92,635,796 | AG28: 2,880,406,647
A29: O021000 | D29: 11) 유형자산감가상각비
A30: O022000 | D30: 12) 투자부동산감가상각비
A31: O023000 | D31: 13) 무형자산감가상각비
A32: O024000 | D32: 14) 세금과공과 | AG32: 67,500
A33: O025000 | D33: 15) 광고선전비 | O33: 99,000,000 | U33: 99,000,000
A34: O026000 | D34: 16) 보험료
A35: O027000 | D35: 17) 임차료
A36: O028000 | D36: 18) 교육훈련비
A37: O029000 | D37: 19) 여비교통비
A38: O030000 | D38: 20) 통신비
A39: O031000 | D39: 21) 수선유지비
A40: O032000 | D40: 22) 청소비
A41: O033000 | D41: 23) 수도광열비
A42: O034000 | D42: 24) 대손상각비
A43: O035000 | D43: 25) 접대비
A44: O036000 | D44: 26) 판매촉진비
A45: O037000 | D45: 27) 이자비용
A46: O038000 | D46: 28) 금융리스이자비용
A47: O099000 | D47: 29) 기타영업비용
A48: P000000 | D48: Ⅲ. 영업이익 | O48: =O10-O18 -> 4,235,208,207 | U48: =U10-U18 -> 19,249,482,709 | AA48: =AA10-AA18 -> 4,161,912,387 | AG48: =AG10-AG18 -> (1,205,151,745)
A49: Q000000 | D49: Ⅳ. 영업외수익 | O49: =+O50+O51+O52+O53+O54+O55+O56+O57+O58+O59 -> 651,004 | U49: =+U50+U51+U52+U53+U54+U55+U56+U57+U58+U59 -> 2,020,103 | AA49: =+AA50+AA51+AA52+AA53+AA54+AA55+AA56+AA57+AA58+AA59 -> (15,433,381) | AG49: =+AG50+AG51+AG52+AG53+AG54+AG55+AG56+AG57+AG58+AG59 -> 708,921,779
A50: Q011000 | D50: 1) 이자수익 | O50: 641,429 | U50: 2,006,419 | AA50: 2,107,403 | AG50: 48,593,779
A51: Q012000 | D51: 2) 배당금수익
A52: Q013000 | D52: 3) 유가증권관련이익(처분이익 등) | AA52: (17,540,784)
A53: Q014000 | D53: 4) 파생상품관련이익(처분이익 등)
A54: Q015000 | D54: 5) 유형자산관련이익(처분이익 등)
A55: Q016000 | D55: 6) 투자부동산관련이익(처분이익 등)
A56: Q017000 | D56: 7) 외화환산이익
A57: Q018000 | D57: 8) 외환차익
A58: Q019000 | D58: 9) 충당부채환입
A59: Q099000 | D59: 10) 기타영업외수익 | O59: 9,575 | U59: 13,684 | AG59: 660,328,000
A60: R000000 | D60: Ⅴ. 영업외비용 | O60: =+O61+O62+O63+O64+O65+O66+O67+O68+O69+O70 -> 189,479,452 | U60: =+U61+U62+U63+U64+U65+U66+U67+U68+U69+U70 -> 362,301,369 | AA60: =+AA61+AA62+AA63+AA64+AA65+AA66+AA67+AA68+AA69+AA70 -> 0 | AG60: =+AG61+AG62+AG63+AG64+AG65+AG66+AG67+AG68+AG69+AG70 -> 0
A61: R011000 | D61: 1) 이자비용 | O61: 189,479,452 | U61: 362,301,369
A62: R012000 | D62: 2) 유가증권관련손실(처분손실 등)
A63: R013000 | D63: 3) 파생상품관련손실(처분손실 등)
A64: R014000 | D64: 4) 유형자산관련손실(처분손실 등)
A65: R015000 | D65: 5) 투자부동산관련손실(처분손실 등)
A66: R016000 | D66: 6) 외화환산손실
A67: R017000 | D67: 7) 외환차손
A68: R018000 | D68: 8) 기부금
A69: R019000 | D69: 9) 충당부채전입
A70: R099000 | D70: 10) 기타영업외비용
A71: S000000 | D71: Ⅵ. 법인세비용차감전순이익(손실) | O71: =O48+O49-O60 -> 4,046,379,759 | U71: =U48+U49-U60 -> 18,889,201,443 | AA71: =AA48+AA49-AA60 -> 4,146,479,006 | AG71: =AG48+AG49-AG60 -> (496,229,966)
A72: T000000 | D72: Ⅶ. 법인세비용(수익)
A73: U000000 | D73: Ⅷ. 당기순이익(손실) | O73: 4,635,234,953 | U73: 18,889,201,443 | AA73: 4,146,479,006 | AG73: (496,229,966)
A74: V000000 | D74: Ⅸ. 기타포괄이익(손실) | O74: =+O75+O76+O77 -> 0 | U74: =+U75+U76+U77 -> 0 | AA74: =+AA75+AA76+AA77 -> 0 | AG74: =+AG75+AG76+AG77 -> 0
A75: V011000 | D75: 1) 확정급여채무 관련 기타포괄손익
A76: V012000 | D76: 2) 유가증권 관련 기타포괄손익
A77: V099000 | D77: 3) 기타의 기타포괄손익
A78: W000000 | D78: Ⅹ. 총포괄이익(손실) | O78: =O73+O74 -> 4,635,234,953 | U78: =U73+U74 -> 18,889,201,443 | AA78: =AA73+AA74 -> 4,146,479,006 | AG78: =AG73+AG74 -> (496,229,966)
A79: X000000 | D79: ⅩⅠ. 주당이익 | O79: 32 | U79: 132 | AA79: 29 | AG79: (4)
AM81: ← 필요시 주석 기재
B84: * 입력도움말 1. 계정과목은 수정하지 마시기 바랍니다.(일치하는 계정과목이 없는경우 해당 대분류 아래 '기타'에 입력) 2. 해당하는 계정과목에만 금액을 입력하시고, 그외는 기재하지 마시기 바랍니다. 3. 전기는 당기와 동일한 기간으로 입력하시기 바랍니다. (예) : 3분기 투자보고서인 경우, 당기 최근3개월(당기 3분기 발생액), 당기누적(당기 1~3분기 누적액) 전기 최근3개월(전기 3분기 발생액), 전기누적(전기 1~3분기 누적액) 4. 회사별로 계정과목 대분류가 다를 수 있습니다. 각 회사 기존 감사보고서상 재무제표와 대분류(영업수익, 영업비용, 영업외수익, 영업외비용 등)를 일치시켜 주시기 바랍 니다. 예를들어 투자부동산평가이익을 영업수익으로 분류하는 회사는 Ⅰ. 영업수익 아래 4. 기타영업수익으로 입력하고, 투자부동산평가이익을 영업외수익으로 분류하는 회사는 Ⅳ. 영업외수익 아래 6. 투자부동산관련이익(처분이익 등)으로 분류하시면 됩니다. 5. 매출원가와 판매비와관리비는 영업비용에 넣으시기 바랍니다. 6. 당기순손실, 기타포괄손실 등 음수인 계정과목은 숫자 앞에 '-'를 붙여 음수로 입력하시기 바랍니다. 7. 표 왼쪽에 적혀있는 코드는 수정 및 삭제하지 마시기 바랍니다.

Sheet 5부.Ⅲ
B2: Ⅲ. 이익잉여금처분계산서
J4: 당기 | L4: 제 | M4: ='5부.Ⅰ'!Q6 -> 4 | N4: 기 | P4: 기말 | S4: 시작일 | V4: ='5부.Ⅱ'!V4 -> 2021.06.01 | Z4: 종료일 | AC4: ='5부.Ⅱ'!AC4 -> 2021.11.30
J5: 전기 | L5: 제 | M5: ='5부.Ⅰ'!Q7 -> 3 | N5: 기 | P5: 기말 | S5: 시작일 | V5: ='5부.Ⅱ'!V5 -> 2020.12.01 | Z5: 종료일 | AC5: ='5부.Ⅱ'!AC5 -> 2021.05.31
D6: 회사명: | G6: =표지!E28 -> 이에스알켄달스퀘어위탁관리부동산투자회사(주) | AI6: (단위: 원)
D7: 과 목 | S7: 제 | T7: =M4 -> 4 | U7: (당)기 | AE7: 제 | AF7: =M5 -> 3 | AG7: (전)기
O8: 처분예정일 | U8: 2022.02.25 | AA8: 처분확정일 | AG8: 2021.08.31
A9: 코 드 | O9: 금 액 | AA9: 금 액
A10: P000000 | D10: Ⅰ. 미처분이익잉여금(미처리결손금) | U10: =SUM(O11:T14) -> 20,040,809,374 | AG10: =SUM(AA11:AF14) -> 19,715,144,069
A11: P000001 | D11: 1. 전기이월미처분이익잉여금(미처리결손금) | O11: 1,151,607,931 | AA11: 20,211,374,035
A12: P000002 | D12: 2. 당기순이익(손실) | O12: 18,889,201,443 | AA12: (496,229,966)
A13: P000003 | D13: 3. 확정급여채무의 재측정요소 | O13: 0 | AA13: 0
A14: P000004 | D14: 4. 기타 | O14: 0 | AA14: 0
A15: P000005 | D15: Ⅱ. 임의적립금등의 이입액 | U15: 0 | AG15: 0
A16: P000006 | D16: Ⅲ. 이익잉여금처분액 | U16: =-(O17+O18+O19+O20+O25) -> (9,360,706,000) | AG16: =-(AA17+AA18+AA19+AA20+AA25) -> (18,563,536,138)
A17: P000007 | D17: 1. 법정준비금 | O17: 0 | AA17: 0
A18: P000008 | D18: 2. 임의준비금 | O18: 0 | AA18: 0
A19: P000009 | D19: 3. 주식할인발행차금상각액 | O19: 0 | AA19: 0
A20: P000010 | D20: 4. 배당금 | O20: =SUM(O21:T24) -> 19,196,706,000 | AA20: =SUM(AA21:AF24) -> 19,263,536,138
A21: P000011 | D21: 보통주현금배당금 | O21: 19,196,706,000 | AA21: 19,263,536,138
A22: P000012 | D22: 종류주현금배당금 | O22: 0 | AA22: 0
A23: P000013 | D23: 보통주주식배당금 | O23: 0 | AA23: 0
A24: P000014 | D24: 종류주주식배당금 | O24: 0 | AA24: 0
A25: P000015 | D25: 5. 기타 | O25: (9,836,000,000) | AA25: (700,000,000)
A26: P000016 | D26: Ⅳ. 결손금처리액 | U26: 0 | AG26: 0
A27: P000017 | D27: Ⅴ. 차기이월미처분이익잉여금(미처리결손금) | U27: =U10+U15+U16+U26 -> 10,680,103,374 | AG27: =AG10+AG15+AG16+AG26 -> 1,151,607,931
AM29: ← 필요시 주석 기재
B32: * 입력도움말 1. 계정과목은 수정하지 마시기 바랍니다.(일치하는 계정과목이 없는경우 해당 대분류 아래 '기타'에 입력) 2. 해당하는 계정과목에만 금액을 입력하시고, 그외는 기재하지 마시기 바랍니다. 3 이익잉여금처분계산서는 결산기에만 입력하시기 바랍니다. 4. 미처리결손금, 당기순손실, 결손금처리액과 같이 음수인 계정과목은 숫자 앞에 '-'를 붙여 음수로 입력하시기 바랍니다. 5. 표 왼쪽에 적혀있는 코드는 수정 및 삭제하지 마시기 바랍니다.

Sheet 5부.Ⅳ
B2: Ⅳ. 현금흐름표
J4: 당기 | L4: 제 | M4: ='5부.Ⅰ'!Q6 -> 4 | N4: 기 | P4: 기말 | S4: 시작일 | V4: ='5부.Ⅱ'!V4 -> 2021.06.01 | Z4: 종료일 | AC4: ='5부.Ⅱ'!AC4 -> 2021.11.30
J5: 전기 | L5: 제 | M5: ='5부.Ⅰ'!Q7 -> 3 | N5: 기 | P5: 기말 | S5: 시작일 | V5: ='5부.Ⅱ'!V5 -> 2020.12.01 | Z5: 종료일 | AC5: ='5부.Ⅱ'!AC5 -> 2021.05.31
D6: 회사명: | G6: =표지!E28 -> 이에스알켄달스퀘어위탁관리부동산투자회사(주) | AI6: (단위: 원)
D7: 과 목 | S7: 제 | T7: =M4 -> 4 | U7: (당)기 | AE7: 제 | AF7: =M5 -> 3 | AG7: (전)기
A8: 코 드 | O8: 금 액 | AA8: 금 액
A9: Q000000 | D9: Ⅰ. 영업활동으로 인한 현금흐름 | U9: =U10+U11+U24+U47+U48+U49+U50 -> 21,427,123,689 | AG9: =AG10+AG11+AG24+AG47+AG48+AG49+AG50 -> (5,747,606,914)
A10: Q000001 | D10: 1. 당기순이익(손실) | U10: 18,889,201,443 | AG10: (496,229,966)
A11: R000000 | D11: 2. 당기순이익 조정을 위한 가감 | U11: =SUM(O12:T23) -> (19,320,027,951) | AG11: =SUM(AA12:AF23) -> (5,016,093,608)
A12: R000001 | D12: 법인세비용
A13: R000002 | D13: 이자수익 | O13: (2,006,419) | AA13: (48,593,779)
A14: R000003 | D14: 이자비용 | O14: 362,301,369
A15: R000004 | D15: 감가상각비
A16: R000005 | D16: 유가증권관련손실(이익) | O16: (19,680,322,901) | AA16: (4,307,171,829)
A17: R000006 | D17: 파생상품관련손실(이익)
A18: R000007 | D18: 유형자산관련손실(이익)
A19: R000008 | D19: 투자부동산관련손실(이익)
A20: R000009 | D20: 외화환산손실(이익)
A21: R000011 | D21: 금융리스이자비용
A22: R000012 | D22: 금융리스이자수익
A23: R000010 | D23: 기타 | AA23: (660,328,000)
A24: S000000 | D24: 3. 영업활동 관련 자산(부채)의 감소(증가) | U24: =SUM(O25:T46) -> 33,344,670 | AG24: =SUM(AA25:AF46) -> (274,236,311)
A25: S000001 | D25: 재고자산의 변동
A26: S000002 | D26: 금융상품의 변동
A27: S000003 | D27: 매출채권의 변동
A28: S000004 | D28: 투자부동산의 변동
A29: S000005 | D29: 미청구공사의 변동
A30: S000006 | D30: 미수수익의 변동
A31: S000007 | D31: 분양미수금의 변동
A32: S000008 | D32: 기타미수금의 변동
A33: S000009 | D33: 선급금의 변동
A34: S000010 | D34: 선급비용의 변동
A35: S000011 | D35: 매입채무의 변동
A36: S000012 | D36: 초과청구공사의 변동
A37: S000013 | D37: 분양선수금의 변동
A38: S000014 | D38: 기타선수금의 변동
A39: S000015 | D39: 선수수익의 변동
A40: S000016 | D40: 미지급금의 변동 | O40: 33,344,670 | AA40: (274,873,711)
A41: S000017 | D41: 미지급비용의 변동
A42: S000018 | D42: 예수금의 변동 | AA42: 637,400
A43: S000019 | D43: 보증금의 변동
A44: S000020 | D44: 퇴직금의 지급
A45: S000021 | D45: 사외적립자산(퇴직보험예치금)의 변동
A46: S000022 | D46: 기타
A47: T000000 | D47: 4. 배당금의 수취 | U47: 22,930,247,568 | AG47: 112,876
A48: T000001 | D48: 5. 이자의 지급 | U48: (191,561,643)
A49: T000002 | D49: 6. 이자의 수취 | U49: 4,616,242 | AG49: 44,919,785
A50: T000003 | D50: 7. 법인세의 납부 | U50: (918,696,640) | AG50: (6,079,690)
A51: U000000 | D51: Ⅱ. 투자활동으로 인한 현금흐름 | U51: =U52+U60 -> (28,700,000,000) | AG51: =AG52+AG60 -> (691,787,014,736)
A52: U000001 | D52: 1. 투자활동으로 인한 현금유입액 | U52: =SUM(O53:T59) -> 0 | AG52: =SUM(AA53:AF59) -> 0
A53: U000002 | D53: 매도가능금융자산의 처분
A54: U000003 | D54: 만기보유금융자산의 처분
A55: U000004 | D55: 관계기업투자주식의 처분
A56: U000005 | D56: 종속기업투자주식 처분
A57: U000006 | D57: 유형자산의 처분
A58: U000007 | D58: 투자부동산의 처분
A59: U000008 | D59: 기타
A60: U000009 | D60: 2. 투자활동으로 인한 현금유출액 | U60: =-SUM(O61:T67) -> (28,700,000,000) | AG60: =-SUM(AA61:AF67) -> (691,787,014,736)
A61: U000010 | D61: 매도가능금융자산의 취득
A62: U000011 | D62: 만기보유금융자산의 취득
A63: U000012 | D63: 관계기업투자주식의 취득 | O63: 26,200,000,000 | AA63: 158,238,014,736
A64: U000013 | D64: 종속기업투자주식의 취득 | O64: 2,500,000,000 | AA64: 533,549,000,000
A65: U000014 | D65: 유형자산의 취득
A66: U000015 | D66: 투자부동산의 취득
A67: U000016 | D67: 기타
A68: V000000 | D68: Ⅲ. 재무활동으로 인한 현금흐름 | U68: =U69+U75 -> 689,251,402 | AG68: =AG69+AG75 -> 348,025,380,910
A69: V000001 | D69: 1. 재무활동으로 인한 현금유입액 | U69: =SUM(O70:T74) -> 20,000,000,000 | AG69: =SUM(AA70:AF74) -> 357,295,000,000
A70: V000002 | D70: 주식의 발행 | AA70: 357,295,000,000
A71: V000003 | D71: 단기차입금의 차입
A72: V000004 | D72: 장기차입금의 차입 | O72: 20,000,000,000
A73: V000005 | D73: 사채의 발행
A74: V000006 | D74: 기타
A75: V000007 | D75: 2. 재무활동으로 인한 현금유출액 | U75: =-SUM(O76:T80) -> (19,310,748,598) | AG75: =-SUM(AA76:AF80) -> (9,269,619,090)
A76: V000008 | D76: 단기차입금의 상환
A77: V000009 | D77: 장기차입금의 상환
A78: V000010 | D78: 사채의 상환
A79: V000011 | D79: 배당금의 지급 | O79: 19,263,536,138
A80: V000012 | D80: 기타 | O80: 47,212,460 | AA80: 9,269,619,090
A81: W000000 | D81: Ⅳ. 환율변동효과 반영전 현금및현금성자산의 증감 | U81: =U9+U51+U68 -> (6,583,624,909) | AG81: =AG9+AG51+AG68 -> (349,509,240,740)
A82: W000001 | D82: Ⅴ. 현금및현금성자산에 대한 환율변동효과
A83: W000002 | D83: Ⅵ. 현금및현금성자산의 순증감 | U83: =U81+U82 -> (6,583,624,909) | AG83: =AG81+AG82 -> (349,509,240,740)
A84: W000003 | D84: Ⅶ. 기초 현금및현금성자산 | U84: 8,289,912,266 | AG84: 357,799,153,006
A85: W000004 | D85: Ⅷ. 기말 현금및현금성자산 | U85: =U83+U84 -> 1,706,287,357 | AG85: =AG83+AG84 -> 8,289,912,266
AM87: ← 필요시 주석 기재
B90: * 입력도움말 1. 계정과목은 수정하지 마시기 바랍니다.(일치하는 계정과목이 없는경우 해당 대분류 아래 '기타'에 입력) 2. 해당하는 계정과목에만 금액을 입력하시고, 그외는 기재하지 마시기 바랍니다. 3. 현금흐름표는 결산기에만 입력하시기 바랍니다. 4. 이자의 지급, 법인세납부 등과 같이 음수인 계정과목은 숫자 앞에 '-'를 붙여 음수로 입력하시기 바랍니다. 5. 표 왼쪽에 적혀있는 코드는 수정하지 마시기 바랍니다.

Sheet 5부.Ⅴ
B2: Ⅴ. 자본변동표
J4: 당기 | L4: 제 | M4: ='5부.Ⅱ'!M4 -> 4 | N4: 기 | P4: 기말 | S4: 시작일 | V4: ='5부.Ⅱ'!V4 -> 2021.06.01 | Z4: 종료일 | AC4: ='5부.Ⅱ'!AC4 -> 2021.11.30
J5: 전기 | L5: 제 | M5: ='5부.Ⅱ'!M5 -> 3 | N5: 기 | P5: 기말 | S5: 시작일 | V5: ='5부.Ⅱ'!V5 -> 2020.12.01 | Z5: 종료일 | AC5: ='5부.Ⅱ'!AC5 -> 2021.05.31
D6: 회사명: | G6: =표지!E28 -> 이에스알켄달스퀘어위탁관리부동산투자회사(주) | AI6: (단위: 원)
C7: 구 분 | I7: 자본금 | M7: 자본잉여금 | P7: 자본조정 | T7: 기타포괄 손익누계액 | X7: 이익잉여금 | AB7: 기타 | AF7: 비지배지분 | AI7: 총계
C8: 전기 초(2020-12-01) | I8: 48,200,000,000 | M8: 192,541,961,760 | P8: 0 | T8: 0 | X8: -1,446,625,965 | AI8: 239,295,335,795
C9: 유상증자(보통주) | I9: 71,459,000,000 | M9: 277,064,431,350 | P9: 0 | T9: 0 | X9: 0 | AI9: 348,523,431,350
C10: 전환사채의 전환 | I10: 23,600,000,000 | M10: 93,901,949,560 | P10: 0 | T10: 0 | X10: 0 | AI10: 117,501,949,560
C11: 결손보전 | M11: -21,658,000,000 | P11: 0 | T11: 0 | X11: 21,658,000,000 | AI11: 0
C12: 당기순이익 | I12: 0 | M12: 0 | P12: 0 | T12: 0 | X12: -496,229,966 | AI12: -496,229,966
C13: 전기 말(2021-05-31) | I13: 143,259,000,000 | M13: 541,850,342,670 | P13: 0 | T13: 0 | X13: 19,715,144,069 | AI13: 704,824,486,739
C14: 당기 초(2021-06-01) | I14: 143,259,000,000 | M14: 541,850,342,670 | P14: 0 | T14: 0 | X14: 19,715,144,069 | AI14: 704,824,486,739
C15: 기타불입자본 이입액 | I15: 0 | M15: -700,000,000 | P15: 0 | T15: 0 | X15: 700,000,000 | AI15: 0
C16: 신주발행비용 | I16: 0 | M16: -47,212,460 | P16: 0 | T16: 0 | X16: 0 | AI16: -47,212,460
C17: 배당 | I17: 0 | M17: 0 | P17: 0 | T17: 0 | X17: -19,263,536,138 | AI17: -19,263,536,138
C18: 당기순이익 | I18: 0 | M18: 0 | P18: 0 | T18: 0 | X18: 18,889,201,443 | AI18: 18,889,201,443
C19: 당기 말(2021-11-30) | I19: 143,259,000,000 | M19: 541,103,130,210 | P19: 0 | T19: 0 | X19: 20,040,809,374 | AI19: 704,402,939,584
AM21: ← 필요시 주석 기재
B24: * 입력도움말 1. 필요시 행추가(복사한 셀 삽입)하여 추가 작성하시기 바랍니다. 2. 해당사항 없는 항목은 기재하지 마시기 바랍니다.

Sheet 5부.Ⅵ
B2: Ⅵ. 재무제표에 대한 주석(차입에 관한 구체적인 사항을 포함)
C4: 주석은 투자보고서 마지막에 별첨합니다.
A13: * 입력도움말 1. 주석은 별도의 PDF 파일로 업로드 해 주세요.

Sheet 5부.Ⅶ
B2: Ⅶ. 감사인의 감사(검토) 의견
B4: - 외부감사인의 감사(검토) 의견 및 위반사항
C6: 감사(검토)의견 : | I6: 적정
C7: 기타사항(특기사항 포함)
B19: - 내부감사인의 감사(검토) 의견
C21: 감사(검토)의견 : | I21: 적정
C22: 기타사항(특기사항 포함)
A35: * 입력도움말 1. 외부감사인의 감사(검토)의견란에는 "적정, 부적정, 한정, 의견거절, 해당사항 없음(분기 등 해당기간 아닌경우)" 중 해당되는 사항을 선택해 주시기 바랍니다. 2. 기타사항(특기사항 포함) 내용이 입력범위를 초과하는 경우 셀 높이를 조절하시기 바랍니다.

Sheet 6부.Ⅰ
A2: 제 6 부 중요한 소송등 진행 현황
A4: Ⅰ. 중요한 소송진행사항
A11: * 입력도움말 1. 입력범위를 초과하는 경우 셀 높이를 조절하시기 바랍니다. 2. 해당사항 없는 항목은 기재하지 마시기 바랍니다. 3. 해당 기에 소송이 진행 중인 경우 초기 진행사항부터 기재하시기 바랍니다.

Sheet 7부.Ⅰ
A2: 제 7 부 특별관계자 등과의 거래 현황
A4: Ⅰ. 거래현황
C6: 주석22. 특수관계자 거래 참고
E9: ※ 특별관계자 등은 다음에 해당하는 자를 말함 1. 해당 부동산투자회사의 임직원 및 그 특별관계자 2. 해당 부동산투자회사의 주식을 100분의 10 이상 소유하고 있는 주주 및 그 특별관계자 ※ 특별관계자는 자본시장법 시행령 제141조제1항의 특수관계인 및 공동보유자를 말함 ※ 특별관계자 등과의 거래는 법 제30조제2항 각 호에 해당하는 거래를 말함
A12: * 입력도움말 1. 입력범위를 초과하는 경우 셀 높이를 조절하시기 바랍니다. 2. 해당사항 없는 항목은 기재하지 마시기 바랍니다.

Sheet 8부.Ⅰ
A2: 제 8 부 기타사항
A4: Ⅰ. 제재현황
A11: * 입력도움말 1. 입력범위를 초과하는 경우 셀 높이를 조절하시기 바랍니다. 2. 해당사항 없는 항목은 기재하지 마시기 바랍니다.
